{"text_format":"3","workbook":"xlsx","n_sheets":2,"sheets":["Интерфейс протокола","Общее адресное пространство"],"not_rendered":{"comments":2},"read":"whole","date_system":"1900"}

{"sheet":"Интерфейс протокола","index":0,"n_rows":39,"n_cols":43,"rows_kept":39,"merged":[[0,30,3,33],[1,0,1,28],[1,35,3,42],[2,1,2,8],[2,9,2,28],[3,2,3,4],[3,5,3,8],[3,9,3,12],[3,13,3,28],[4,2,4,4],[4,5,4,8],[4,9,8,12],[4,13,4,24],[4,25,4,28],[4,30,4,33],[4,35,4,42],[5,2,5,4],[5,5,5,8],[5,13,5,24],[5,25,5,28],[5,30,5,33],[5,35,5,42],[6,2,6,4],[6,5,6,8],[6,13,6,24],[6,25,6,28],[6,30,6,33],[6,35,6,42],[7,2,7,4],[7,5,7,8],[7,13,7,24],[7,25,7,28],[7,30,7,33],[8,2,8,4],[8,5,8,8],[8,13,8,28],[8,30,8,33],[8,35,8,42],[9,2,9,4],[9,5,9,8],[9,9,16,12],[9,13,9,16],[9,17,9,28],[9,30,9,33],[9,35,9,42],[10,2,10,4],[10,5,10,8],[10,13,10,16],[10,17,10,28],[10,30,10,33],[10,35,10,42],[11,2,11,4],[11,5,11,8],[11,13,11,16],[11,17,11,28],[11,30,11,33],[11,35,11,42],[12,5,12,8],[12,13,12,16],[12,17,12,28],[12,30,12,33],[12,35,12,42],[13,5,13,8],[13,13,13,16],[13,17,13,28],[13,30,13,33],[13,35,13,42],[14,5,14,8],[14,13,14,16],[14,17,14,28],[14,30,14,33],[14,35,14,42],[15,5,15,8],[15,13,15,16],[15,17,15,28],[15,30,15,33],[15,35,15,42],[16,5,16,8],[16,13,16,16],[16,17,16,28],[16,30,16,33],[16,35,16,42],[17,5,17,8],[17,9,22,12],[17,13,17,16],[17,17,17,28],[17,30,17,33],[17,35,17,42],[18,5,18,8],[18,13,18,16],[18,17,18,28],[18,30,18,33],[18,35,18,42],[19,5,19,8],[19,13,19,16],[19,17,19,28],[19,30,19,33],[19,35,19,42],[20,5,20,8],[20,13,20,16],[20,17,20,28],[20,30,20,33],[20,35,20,42],[21,5,21,8],[21,13,21,16],[21,17,21,28],[21,30,21,33],[21,35,21,42],[22,5,22,8],[22,13,22,16],[22,17,22,28],[22,30,22,33],[22,35,22,42],[23,5,23,8],[23,9,23,12],[23,13,23,28],[23,30,23,33],[23,35,23,36],[23,37,23,38],[23,39,23,40],[23,41,23,42],[24,5,24,8],[24,9,24,12],[24,13,24,24],[24,25,24,28],[24,30,24,33],[24,35,24,42],[25,5,25,8],[25,9,25,12],[25,13,25,24],[25,25,25,28],[25,30,25,33],[25,35,25,42],[26,5,26,8],[26,9,26,12],[26,13,26,24],[26,25,26,28],[26,30,26,33],[26,35,26,42],[27,5,27,8],[27,9,27,12],[27,13,27,24],[27,25,27,28],[27,30,27,33],[27,35,27,42],[28,5,28,8],[28,9,28,12],[28,13,28,20],[28,21,28,28],[28,30,28,33],[28,35,28,42],[29,5,29,8],[29,9,29,12],[29,13,29,28],[29,30,29,33],[29,35,29,42],[30,9,30,12],[30,13,30,20],[30,21,30,28],[31,5,31,8],[31,9,31,12],[31,13,31,28],[31,30,31,33],[31,35,31,41],[33,22,33,24],[33,25,33,28],[37,9,37,12],[37,13,37,20],[37,21,37,28],[38,2,38,4],[38,5,38,8],[38,13,38,20],[38,21,38,28],[38,35,38,42]]}
[28,27,26,25,24,23,22,21,20,19,18,17,16,15,14,13,12,11,10,9,8,7,6,5,4,3,2,1,0,null,"DLC COUNT",{"$nulls":4},7,6,5,4,3,2,1,0]
["Fields",{"$nulls":34},"DLC"]
["Приоритет","Адресация",{"$nulls":7},"Сообщение"]
["Priority (1 bit)","ПМ (1 bit)","Device Type (3 bits)",null,null,"Device (4 bits)",{"$nulls":3},"Msg Type (4 bits)",{"$nulls":3},"Body (16 bits)"]
["0x0. Критический","0x0. ПМ","0x0 Верхний уровень",null,null,"NULL",{"$nulls":3},"0x0. Широковещательные",{"$nulls":3},"0x0. Статус",{"$nulls":16},0,{"$nulls":4},"NULL"]
["0x1. Стандартный","0х1. Устройство","0x1",null,null,"0x0 - 0xF устройств",{"$nulls":7},"0x1. Запрос на вкл/выкл",{"$nulls":11},"Выбор \"страницы\" из 64 устройств (Битовые флаги в Data)",{"$nulls":4},8,{"$nulls":4},"64 битовых адресса"]
[null,null,"0x2",null,null,"0x0 - 0xF устройств",{"$nulls":7},"0x2. Рестарт устройств",{"$nulls":11},"Выбор \"страницы\" из 64 устройств (Битовые флаги в Data)",{"$nulls":4},8,{"$nulls":4},"64 битовых адресса"]
[null,null,"0x3",null,null,"0x0 - 0xF устройств",{"$nulls":7},"0x3. Установка времени",{"$nulls":16},7,{"$nulls":4},"NULL","WeekDay","Date","Month","Year","Seconds","Minutes","Hours"]
[null,null,"0x4",null,null,"0x0 - 0xF устройств",{"$nulls":7},"0x0 – 0xFFFF. Резерв",{"$nulls":16},"NULL",{"$nulls":4},"NULL"]
[null,null,"0x5",null,null,"0x0 - 0xF устройств",{"$nulls":3},"0x1. Дискретные",{"$nulls":3},"0x0. Аварии"]
[null,null,"0x6",null,null,"0x0 - 0xF устройств",{"$nulls":7},"0x1. Предупреждения"]
[null,null,"0x7",null,null,"0x0 - 0xF устройств",{"$nulls":7},"0x2. Управляющие сигналы"]
[{"$nulls":13},"0x3. Флаги"]
[{"$nulls":13},"0x4. Рестарт устройства"]
[{"$nulls":13},"0x5. Изменение режима работы устройства"]
[{"$nulls":13},"0x6. Запрос на устройство - перечень параметров для отправки обратно. Возможность создания запроса с конт-м колличеством параметров",{"$nulls":3},"Тип Датчика. В Data - 64 \"битовых адрессов\"",{"$nulls":12},8,{"$nulls":4},"64 битовых адресса"]
[{"$nulls":13},"0x7 – 0xF. Резерв",{"$nulls":3},"0x0 – 0xFFF. Резерв",{"$nulls":12},"NULL",{"$nulls":4},"NULL"]
[{"$nulls":9},"0x2. Аналог",{"$nulls":3},"0x0. Универсальный запрос",{"$nulls":3},"ID датчика (0х0 - 0xFFF)",{"$nulls":12},"Кол-во запр значений. 0...8",{"$nulls":4},"NULL"]
[{"$nulls":13},"0x1. Уставки",{"$nulls":3},"ID датчика (0х0 - 0xFFF)",{"$nulls":12},"Кол-во запр значений. 0...8",{"$nulls":4},"NULL"]
[{"$nulls":13},"0x2. Напряжение",{"$nulls":3},"ID датчика (0х0 - 0xFFF)",{"$nulls":12},"Кол-во запр значений. 0...8",{"$nulls":4},"NULL"]
[{"$nulls":13},"0x3. Ток",{"$nulls":3},"ID датчика (0х0 - 0xFFF)",{"$nulls":12},"Кол-во запр значений. 0...8",{"$nulls":4},"NULL"]
[{"$nulls":13},"0x4. Температура",{"$nulls":3},"ID датчика (0х0 - 0xFFF)",{"$nulls":12},"Кол-во запр значений. 0...8",{"$nulls":4},"NULL"]
[{"$nulls":13},"0x5 – 0xF. Резерв",{"$nulls":3},"0x0 – 0xFFF. Резерв",{"$nulls":12},"NULL",{"$nulls":4},"NULL"]
[{"$nulls":9},"0x3. Общее адресное пространство",{"$nulls":3},"Адрес регистра (Стартовый адрес, если DLC COUNT > 2) (0, 0x0000 - 65535, 0xFFFF)",{"$nulls":16},"0/2/4/6/8",{"$nulls":4},"Четвёртый регистр",null,"Третий регистр",null,"Второй регистр",null,"Первый регистр"]
[{"$nulls":9},"0x4. Modbus Coil",{"$nulls":3},"Стартовый адрес регистра (0x0 - 0xFFF)",{"$nulls":11},"Кол-во регистров (0-15)",{"$nulls":9},"NULL"]
[{"$nulls":9},"0x5. Modbus Discrete",{"$nulls":3},"Стартовый адрес регистра (0x0 - 0xFFF)",{"$nulls":11},"Кол-во регистров (0-15)",{"$nulls":9},"NULL"]
[{"$nulls":9},"0x6. Modbus Holding",{"$nulls":3},"Стартовый адрес регистра (0x0 - 0xFFF)",{"$nulls":11},"Кол-во регистров (0-15(",{"$nulls":9},"NULL"]
[{"$nulls":9},"0x7. Modbus Input",{"$nulls":3},"Стартовый адрес регистра (0x0 - 0xFFF)",{"$nulls":11},"Кол-во регистров (0-15)",{"$nulls":9},"NULL"]
[{"$nulls":9},"0x8 Ошибки",{"$nulls":3},"Дополнительная информация",{"$nulls":7},"Код Ошибки",{"$nulls":8},0,{"$nulls":4},"NULL"]
[{"$nulls":9},"0x9 – 0xE. Резерв",{"$nulls":3},"0x0 – 0xFFFF. Резерв",{"$nulls":16},"NULL",{"$nulls":4},"NULL"]
[{"$nulls":9},"0xE  Settings",{"$nulls":3},"2BYTE",{"$nulls":7},"1BYTE"]
[{"$nulls":9},"0xF. Пульс",{"$nulls":3},"NULL",{"$nulls":16},1,{"$nulls":4},"NULL",{"$nulls":6},"Счётчик"]
[]
[]
[]
[]
[]
[{"$nulls":9},"0xE  Settings",{"$nulls":3},"2BYTE",{"$nulls":7},"1BYTE"]
["0x1. Стандартный","0х1. Устройство","0x7",null,null," 0xF ",{"$nulls":3},"sensor programmer",{"$nulls":3},"сборка(инв1, инв2,выпрям итд) ",{"$nulls":7},"позиция в сборке(VD1 VD2 итд)",{"$nulls":13},"ID temp sens"]

{"sheet":"Общее адресное пространство","index":1,"n_rows":1502,"n_cols":10,"rows_kept":1502,"merged":[[0,1,0,2],[0,3,0,4],[1,0,1099,0],[1,1,611,1],[1,2,39,2],[24,3,39,3],[24,4,39,4],[24,5,39,5],[40,2,186,2],[43,3,58,3],[43,4,58,4],[43,5,58,5],[59,3,74,3],[59,4,74,4],[59,5,74,5],[75,3,90,3],[75,4,90,4],[75,5,90,5],[91,3,106,3],[91,4,106,4],[91,5,106,5],[107,3,122,3],[107,4,122,4],[107,5,122,5],[119,7,120,7],[119,8,120,9],[123,3,138,3],[123,4,138,4],[123,5,138,5],[139,3,154,3],[139,4,154,4],[139,5,154,5],[155,3,170,3],[155,4,170,4],[155,5,170,5],[171,3,186,3],[171,4,186,4],[171,5,186,5],[187,2,337,2],[210,3,225,3],[210,4,225,4],[210,5,225,5],[226,3,241,3],[226,4,241,4],[226,5,241,5],[242,3,257,3],[242,4,257,4],[242,5,257,5],[258,3,273,3],[258,4,273,4],[258,5,273,5],[274,3,289,3],[274,4,289,4],[274,5,289,5],[290,3,305,3],[290,4,305,4],[290,5,305,5],[306,3,321,3],[306,4,321,4],[306,5,321,5],[322,3,337,3],[322,4,337,4],[322,5,337,5],[338,2,358,2],[343,3,358,3],[343,4,358,4],[343,5,358,5],[359,2,572,2],[397,3,412,3],[397,4,412,4],[397,5,412,5],[397,7,398,7],[399,7,400,7],[401,7,402,7],[403,7,404,7],[413,3,428,3],[413,4,428,4],[413,5,428,5],[429,3,444,3],[429,4,444,4],[429,5,444,5],[445,3,460,3],[445,4,460,4],[445,5,460,5],[461,3,476,3],[461,4,476,4],[461,5,476,5],[477,3,492,3],[477,4,492,4],[477,5,492,5],[493,3,508,3],[493,4,508,4],[493,5,508,5],[509,3,524,3],[509,4,524,4],[509,5,524,5],[525,3,540,3],[525,4,540,4],[525,5,540,5],[541,3,556,3],[541,4,556,4],[541,5,556,5],[557,3,572,3],[557,4,572,4],[557,5,572,5],[573,2,590,2],[575,3,590,3],[575,4,590,4],[575,5,590,5],[591,2,611,2],[596,3,611,3],[596,4,611,4],[596,5,611,5],[612,1,690,1],[612,2,614,2],[615,2,617,2],[618,2,640,2],[641,2,645,2],[646,2,683,2],[684,2,685,2],[686,2,690,2],[691,1,769,1],[691,2,693,2],[694,2,696,2],[697,2,719,2],[720,2,724,2],[725,2,762,2],[763,2,764,2],[765,2,769,2],[770,1,838,1],[770,2,771,2],[772,2,794,2],[795,2,797,2],[798,2,831,2],[832,2,833,2],[834,2,838,2],[839,1,907,1],[839,2,840,2],[841,2,863,2],[864,2,866,2],[867,2,900,2],[901,2,902,2],[903,2,907,2],[908,1,1099,1],[908,2,915,2],[908,5,911,5],[909,6,911,6],[909,7,911,7],[912,5,915,5],[913,6,915,6],[913,7,915,7],[916,2,963,2],[916,5,919,5],[917,6,919,6],[917,7,919,7],[920,5,923,5],[921,6,923,6],[921,7,923,7],[924,5,927,5],[925,6,927,6],[925,7,927,7],[928,5,931,5],[929,6,931,6],[929,7,931,7],[932,5,935,5],[933,6,935,6],[933,7,935,7],[936,5,939,5],[937,6,939,6],[937,7,939,7],[940,5,943,5],[941,6,943,6],[941,7,943,7],[944,5,947,5],[945,6,947,6],[945,7,947,7],[948,5,951,5],[949,6,951,6],[949,7,951,7],[952,5,955,5],[953,6,955,6],[953,7,955,7],[956,5,959,5],[957,6,959,6],[957,7,959,7],[960,5,963,5],[961,6,963,6],[961,7,963,7],[964,2,971,2],[964,5,967,5],[965,6,967,6],[965,7,967,7],[968,5,971,5],[969,6,971,6],[969,7,971,7],[972,2,1091,2],[972,5,975,5],[973,6,975,6],[973,7,975,7],[976,5,979,5],[977,6,979,6],[977,7,979,7],[980,5,983,5],[981,6,983,6],[981,7,983,7],[984,5,987,5],[985,6,987,6],[985,7,987,7],[988,5,991,5],[989,6,991,6],[989,7,991,7],[992,5,995,5],[993,6,995,6],[993,7,995,7],[996,5,999,5],[997,6,999,6],[997,7,999,7],[1000,5,1003,5],[1001,6,1003,6],[1001,7,1003,7],[1004,5,1007,5],[1005,6,1007,6],[1005,7,1007,7],[1008,5,1011,5],[1009,6,1011,6],[1009,7,1011,7],[1012,5,1015,5],[1013,6,1015,6],[1013,7,1015,7],[1016,5,1019,5],[1017,6,1019,6],[1017,7,1019,7],[1020,5,1023,5],[1021,6,1023,6],[1021,7,1023,7],[1024,5,1027,5],[1025,6,1027,6],[1025,7,1027,7],[1028,5,1031,5],[1029,6,1031,6],[1029,7,1031,7],[1032,5,1035,5],[1033,6,1035,6],[1033,7,1035,7],[1036,5,1039,5],[1037,6,1039,6],[1037,7,1039,7],[1040,5,1043,5],[1041,6,1043,6],[1041,7,1043,7],[1044,5,1047,5],[1045,6,1047,6],[1045,7,1047,7],[1048,5,1051,5],[1049,6,1051,6],[1049,7,1051,7],[1052,5,1055,5],[1053,6,1055,6],[1053,7,1055,7],[1056,5,1059,5],[1057,6,1059,6],[1057,7,1059,7],[1060,5,1063,5],[1061,6,1063,6],[1061,7,1063,7],[1064,5,1067,5],[1065,6,1067,6],[1065,7,1067,7],[1068,5,1071,5],[1069,6,1071,6],[1069,7,1071,7],[1072,5,1075,5],[1073,6,1075,6],[1073,7,1075,7],[1076,5,1079,5],[1077,6,1079,6],[1077,7,1079,7],[1080,5,1083,5],[1081,6,1083,6],[1081,7,1083,7],[1084,5,1087,5],[1085,6,1087,6],[1085,7,1087,7],[1088,5,1091,5],[1089,6,1091,6],[1089,7,1091,7],[1092,2,1099,2],[1092,5,1095,5],[1093,6,1095,6],[1093,7,1095,7],[1096,5,1099,5],[1097,6,1099,6],[1097,7,1099,7],[1100,0,1421,0],[1100,1,1100,5],[1101,1,1125,1],[1101,2,1125,2],[1110,3,1125,3],[1110,4,1125,4],[1110,5,1125,5],[1126,1,1204,1],[1126,2,1128,2],[1129,2,1131,2],[1132,2,1154,2],[1155,2,1159,2],[1160,2,1197,2],[1198,2,1199,2],[1200,2,1204,2],[1205,1,1283,1],[1205,2,1207,2],[1208,2,1210,2],[1211,2,1233,2],[1234,2,1238,2],[1239,2,1276,2],[1277,2,1278,2],[1279,2,1283,2],[1284,1,1352,1],[1284,2,1285,2],[1286,2,1308,2],[1309,2,1311,2],[1312,2,1345,2],[1346,2,1347,2],[1348,2,1352,2],[1353,1,1421,1],[1353,2,1354,2],[1355,2,1377,2],[1378,2,1380,2],[1381,2,1414,2],[1415,2,1416,2],[1417,2,1421,2],[1450,2,1452,2],[1453,2,1496,2],[1497,2,1501,2]]}
["Направление","Область",null,"Регистры",null,"Содержание регистра","Биты","Битовые поля"]
["Передача","Показания","Основные данные",{"$f":"\"0x\"&DEC2HEX(E2, 4)","v":"0x0000"},0,"Номер преобразователя ПЧ"]
[{"$nulls":3},"0x0001",1,"Версия прошивки ПЧ"]
[{"$nulls":3},"0x0002",2,"Статус ЛСУ"]
[{"$nulls":3},"0x0003",3,"Задание по мощности "]
[{"$nulls":3},"0x0004",4,"Ограничение по мощности"]
[{"$nulls":3},"0x0005",5,"Мощность (МВт)"]
[{"$nulls":3},"0x0006",6,"Задание по скорости вращения"]
[{"$nulls":3},"0x0007",7,"Обороты ГЭД (Об/мин)"]
[{"$nulls":3},"0x0008",8,"Обороты ДЧ1 (Об/мин)"]
[{"$nulls":3},"0x0009",9,"Обороты ДЧ2 (Об/мин)"]
[{"$nulls":3},"0x000A",10,"Частота на выходе ПЧ (Гц)"]
[{"$nulls":3},"0x000B",11,"Ток фазы U (А)"]
[{"$nulls":3},"0x000C",12,"Ток фазы V (А)"]
[{"$nulls":3},"0x000D",13,"Ток фазы W (А)"]
[{"$nulls":3},"0x000E",14,"Средний ток в ЗПТ (А)"]
[{"$nulls":3},"0x000F",15,"Средний ток в БТР (А)"]
[{"$nulls":3},"0x0010",16,"Напряжение выходное (В)"]
[{"$nulls":3},"0x0011",17,"Текущий ток в ГЭД  (А)"]
[{"$nulls":3},"0x0012",18,"Подтверждение выполнения команды (Код команды)"]
[{"$nulls":3},"0x0013",19,"Ошибка при выполнении команды"]
[{"$nulls":3},"0x0014",20,"Счётчик отправок основных данных"]
[{"$nulls":3},"0x0015",21,"Счётчик отправок уставок"]
[{"$nulls":3},"0x0016",22,"Счётчик отправок данных датчиков"]
[{"$nulls":3},"0x0017",23,"Состояние",0,"Готовность 1","1 - зеленый","0 - серый"]
[{"$nulls":6},1,"Готовность 2","1 - зеленый","0 - серый"]
[{"$nulls":6},2,"Ёмкость заряжена","1 - зеленый","0 - серый"]
[{"$nulls":6},3,"Неисправность","1 - желтый","0 - серый"]
[{"$nulls":6},4,"Перегрев","1 - желтый","0 - серый"]
[{"$nulls":6},5,"Ограничение мощности","1 - желтый","0 - серый"]
[{"$nulls":6},6,"Управление (По мощности, По оборотам)","1 - по мощности","0 - по оборотам"]
[{"$nulls":6},7,"Ход","1 - зеленый","0 - серый"]
[{"$nulls":6},8,"Авария","1 - красный","0 - серый"]
[{"$nulls":6},9,"Сработал аварийный стоп","1 - красный","0 - серый"]
[{"$nulls":6},10,"Схема собрана в режиме аварийного хода","1 - желтый","0 - серый"]
[{"$nulls":6},11,"Срабатывание предупредительные уставки по температурам","1 - желтый","0 - серый"]
[{"$nulls":6},12,"Срабатывание аварийной уставки по температурам ","1 - красный","0 - серый"]
[{"$nulls":6},13,"Неисправность СО","1 - желтый","0 - серый"]
[{"$nulls":6},14,"Авария СО","1 - красный","0 - серый"]
[{"$nulls":6},15]
[null,null,"БСУ",{"$f":"\"0x\"&DEC2HEX(E41, 4)","v":"0x0018"},24,"Температура объёма БСУ ВК1"]
[{"$nulls":3},"0x0019",25,"Температура объёма БСУ ВК5"]
[{"$nulls":3},"0x001A",26,"Показания УКСИ"]
[{"$nulls":3},"0x001B",27," Статус датчиков температуры БСУ ",0,"ВК1 - Статус (Онлайн/Офлайн)","1 - зеленый","0 - желтый"]
[{"$nulls":6},1,"ВК 1 - Статус инициализации"]
[{"$nulls":6},2,"BK1 - Предупреждение","1 - желтый","0 - серый"]
[{"$nulls":6},3,"ВК1 - Авария","1 - красный","0 - серый"]
[{"$nulls":6},4,"ВК5 - Статус (Онлайн/Офлайн)","1 - зеленый","0 - желтый"]
[{"$nulls":6},5,"ВК5 - Статус инициализации"]
[{"$nulls":6},6,"ВК5 - Предупреждение","1 - желтый","0 - серый"]
[{"$nulls":6},7,"ВК5 - Авария","1 - красный","0 - серый"]
[{"$nulls":6},8]
[{"$nulls":6},9]
[{"$nulls":6},10]
[{"$nulls":6},11]
[{"$nulls":6},12]
[{"$nulls":6},13]
[{"$nulls":6},14]
[{"$nulls":6},15]
[{"$nulls":3},{"$f":"\"0x\"&DEC2HEX(E60, 4)","v":"0x001C"},28,"Статус УКСИ",0,"Связь с УКСИ","1 - зеленый","0 - серый"]
[{"$nulls":6},1,"Неисправность измерителя","1 - желтый","0 - серый"]
[{"$nulls":6},2,"Сопротивление изоляции снижено","1 - желтый","0 - серый"]
[{"$nulls":6},3,"Сопротивление изоляции аварийно низкое","1 - красный","0 - серый"]
[{"$nulls":6},4]
[{"$nulls":6},5]
[{"$nulls":6},6]
[{"$nulls":6},7]
[{"$nulls":6},8]
[{"$nulls":6},9]
[{"$nulls":6},10]
[{"$nulls":6},11]
[{"$nulls":6},12]
[{"$nulls":6},13]
[{"$nulls":6},14]
[{"$nulls":6},15]
[{"$nulls":3},{"$f":"\"0x\"&DEC2HEX(E76, 4)","v":"0x001D"},29,"Сигналы - Устройство коммутационное\nпроводное цифровое (OUT)",0,"Разреш. Вкл. Автомата главного тока","1 - зеленый","0 - серый"]
[{"$nulls":6},1,"Разреш. Вкл. Зарядного автомата","1 - зеленый","0 - серый"]
[{"$nulls":6},2,"Квитирование (Блокировка аварии)","1 - зеленый","0 - серый"]
[{"$nulls":6},3,"Тест лампы АВАРИЯ","1 - зеленый","0 - серый"]
[{"$nulls":6},4,"Авария СПК от контроллера","1 - красный","0 - серый"]
[{"$nulls":6},5,"Управление от СВУ","1 - зеленый","0 - серый"]
[{"$nulls":6},6,"Резерв 1"]
[{"$nulls":6},7,"Вкл/Откл QT1","1 - зеленый","0 - серый"]
[{"$nulls":6},8,"Вкл/Откл Q1","1 - зеленый","0 - серый"]
[{"$nulls":6},9,"Пуск УПП","1 - зеленый","0 - серый"]
[{"$nulls":6},10,"Вкл. Насосы вод. Охл","1 - зеленый","0 - серый"]
[{"$nulls":6},11,"Блокировка дверей","1 - зеленый","0 - серый"]
[{"$nulls":6},12,"Включение обогревателей","1 - зеленый","0 - серый"]
[{"$nulls":6},13,"Резерв 4"]
[{"$nulls":6},14,"Резерв 3"]
[{"$nulls":6},15,"Резерв 2"]
[{"$nulls":3},{"$f":"\"0x\"&DEC2HEX(E92, 4)","v":"0x001E"},30,"Сигналы - Устройство коммутационное проводное цифровое (IN2)",0,"Состояние QT1","1 - зеленый","0 - серый"]
[{"$nulls":6},1,"Местное управление (ГРУ)","1 - зеленый","0 - серый"]
[{"$nulls":6},2,"Состояние Q1","1 - зеленый","0 - серый"]
[{"$nulls":6},3,"Местное управление (УМП)","1 - зеленый","0 - серый"]
[{"$nulls":6},4,"Работа от УМП","1 - зеленый","0 - серый"]
[{"$nulls":6},5,"Готов от УМП","1 - зеленый","0 - серый"]
[{"$nulls":6},6,"Авария от УМП","1 - красный","0 - серый"]
[{"$nulls":6},7,"Блокировка от СВУ","1 - желтый","0 - серый"]
[{"$nulls":6},8,"Авария откл. От СВУ","1 - красный","0 - серый"]
[{"$nulls":6},9,"Мех. Тормоз вала","1 - желтый","0 - серый"]
[{"$nulls":6},10,"Готовность БТР","1 - зеленый","0 - серый"]
[{"$nulls":6},11,"Ограничение 1","1 - желтый","0 - серый"]
[{"$nulls":6},12,"Ограничение 2","1 - желтый","0 - серый"]
[{"$nulls":6},13,"Ограничение 3","1 - желтый","0 - серый"]
[{"$nulls":6},14,"Ограничение 4","1 - желтый","0 - серый"]
[{"$nulls":6},15,"Авария БТР","1 - красный","0 - серый"]
[{"$nulls":3},{"$f":"\"0x\"&DEC2HEX(E108, 4)","v":"0x001F"},31,"Сигналы - Устройство коммутационное проводное цифровое (IN2)",0,"\"Тест ламп\"","1 - зеленый","0 - серый"]
[{"$nulls":6},1,"\"Квитирование\"","1 - зеленый","0 - серый"]
[{"$nulls":6},2,"\"Обороты больше\"","1 - зеленый","0 - серый"]
[{"$nulls":6},3,"\"Обороты меньше\"","1 - зеленый","0 - серый"]
[{"$nulls":6},4,"\"Приворот\"","1 - зеленый","0 - серый"]
[{"$nulls":6},5,"Авария от УКСИ","1 - красный","0 - серый"]
[{"$nulls":6},6,"Обогреватели включены","1 - зеленый","0 - серый"]
[{"$nulls":6},7,"Резерв"]
[{"$nulls":6},8,"Авария системы ВЭП 1","1 - красный","0 - серый"]
[{"$nulls":6},9,"Авария системы ВЭП 2","1 - красный","0 - серый"]
[{"$nulls":6},10,"Силовая схема - \"Собрать\"","1 - зеленый","0 - серый"]
[{"$nulls":6},11,"Силовая схема - \"Разобрать\"","1 - зеленый","0 - серый"]
[{"$nulls":6},12,"Управление - \"Задатчик\"; \"Монитор\"; \"СВУ\"","00 - монитор; 01 - Задатчик; 10 - СВУ"]
[{"$nulls":6},13]
[{"$nulls":6},14,"От кнопки АВАР. ОТКЛ","1 - красный","0 - серый"]
[{"$nulls":6},15,"Направление вращения вала","1 - зеленый","0 - серый"]
[{"$nulls":3},{"$f":"\"0x\"&DEC2HEX(E124, 4)","v":"0x0020"},32,"Показания ВЭП 1",0,"Контроль ИП1 (питание управляющего контроллера)","1 - зеленый","0 - серый"]
[{"$nulls":6},1,"Контроль ИП2 (питание периферийных устройств)","1 - зеленый","0 - серый"]
[{"$nulls":6},2,"Контроль ИП3 (питание эл. замков, ламп освещения, ДЧВ)","1 - зеленый","0 - серый"]
[{"$nulls":6},3,"Контроль ИП4 (питание датчиков тока и напряжения +)","1 - зеленый","0 - серый"]
[{"$nulls":6},4,"Контроль ИП5 (питание датчиков тока и напряжения –)","1 - зеленый","0 - серый"]
[{"$nulls":6},5,"Контроль ИП6 (питание драйверов)","1 - зеленый","0 - серый"]
[{"$nulls":6},6,"Контроль 3х фазного 380 В","1 - зеленый","0 - серый"]
[{"$nulls":6},7,"Заряд накопителя","1 - желтый","0 - серый"]
[{"$nulls":6},8,"Работа от батареи","1 - желтый","0 - серый"]
[{"$nulls":6},9,"Авария в сети 24 В","1 - красный","0 - серый"]
[{"$nulls":6},10,"Контроль питания ЛСУ","1 - зеленый","0 - серый"]
[{"$nulls":6},11,"Контроль питания 380 В","1 - зеленый","0 - серый"]
[{"$nulls":6},12,"резерв"]
[{"$nulls":6},13,"Контроль питания СН","1 - зеленый","0 - серый"]
[{"$nulls":6},14,"резерв"]
[{"$nulls":6},15,"резерв"]
[{"$nulls":3},{"$f":"\"0x\"&DEC2HEX(E140, 4)","v":"0x0021"},33,"Показания ВЭП 2",0,"Контроль ИП1 (питание управляющего контроллера)","1 - зеленый","0 - серый"]
[{"$nulls":6},1,"Контроль ИП2 (питание периферийных устройств)","1 - зеленый","0 - серый"]
[{"$nulls":6},2,"Контроль ИП3 (питание эл. замков, ламп освещения, ДЧВ)","1 - зеленый","0 - серый"]
[{"$nulls":6},3,"Контроль ИП4 (питание датчиков тока и напряжения +)","1 - зеленый","0 - серый"]
[{"$nulls":6},4,"Контроль ИП5 (питание датчиков тока и напряжения –)","1 - зеленый","0 - серый"]
[{"$nulls":6},5,"Контроль ИП6 (питание драйверов)","1 - зеленый","0 - серый"]
[{"$nulls":6},6,"Контроль 3х фазного 380 В","1 - зеленый","0 - серый"]
[{"$nulls":6},7,"Заряд накопителя","1 - желтый","0 - серый"]
[{"$nulls":6},8,"Работа от батареи","1 - желтый","0 - серый"]
[{"$nulls":6},9,"Авария в сети 24 В","1 - красный","0 - серый"]
[{"$nulls":6},10,"Контроль питания ЛСУ","1 - зеленый","0 - серый"]
[{"$nulls":6},11,"Контроль питания 380 В","1 - зеленый","0 - серый"]
[{"$nulls":6},12,"резерв"]
[{"$nulls":6},13,"Контроль питания СН","1 - зеленый","0 - серый"]
[{"$nulls":6},14,"резерв"]
[{"$nulls":6},15,"резерв"]
[{"$nulls":3},{"$f":"\"0x\"&DEC2HEX(E156, 4)","v":"0x0022"},34,"Ограничения мощности",0,"Ограничение мощности по току","1 - желтый","0 - серый"]
[{"$nulls":6},1,"Ограничение мощности по моменту","1 - желтый","0 - серый"]
[{"$nulls":6},2,"Ограничение мощности по температурам","1 - желтый","0 - серый"]
[{"$nulls":6},3,"Ограничение мощности по напряжению","1 - желтый","0 - серый"]
[{"$nulls":6},4]
[{"$nulls":6},5]
[{"$nulls":6},6]
[{"$nulls":6},7]
[{"$nulls":6},8]
[{"$nulls":6},9]
[{"$nulls":6},10]
[{"$nulls":6},11]
[{"$nulls":6},12]
[{"$nulls":6},13]
[{"$nulls":6},14]
[{"$nulls":6},15]
[{"$nulls":3},{"$f":"\"0x\"&DEC2HEX(E172, 4)","v":"0x0023"},35,"Состояния входов датчиков оборотов",0,"Состояние входа датчика оборотов 1"]
[{"$nulls":6},1,"Состояние входа датчика оборотов 2"]
[{"$nulls":6},2]
[{"$nulls":6},3]
[{"$nulls":6},4]
[{"$nulls":6},5]
[{"$nulls":6},6]
[{"$nulls":6},7]
[{"$nulls":6},8]
[{"$nulls":6},9]
[{"$nulls":6},10]
[{"$nulls":6},11]
[{"$nulls":6},12]
[{"$nulls":6},13]
[{"$nulls":6},14]
[{"$nulls":6},15]
[null,null,"Блок БВ",{"$f":"\"0x\"&DEC2HEX(E188, 4)","v":"0x0024"},36,"Входное линейное напряжение А1В1 (В)"]
[{"$nulls":3},"0x0025",37,"Входное линейное напряжение В1С1 (В)"]
[{"$nulls":3},"0x0026",38,"Входное линейное напряжение А2В2 (В)"]
[{"$nulls":3},"0x0027",39,"Входное линейное напряжение В2С2 (В)"]
[{"$nulls":3},"0x0028",40,"Частота входного напряжения выпрямителя UZ1 (Гц)"]
[{"$nulls":3},"0x0029",41,"Частота входного напряжения выпрямителя UZ2 (Гц)"]
[{"$nulls":3},"0x002A",42,"Температура охладителя выпрямительной ячейки UZ1 ВК1"]
[{"$nulls":3},"0x002B",43,"Температура охладителя выпрямительной ячейки UZ1 ВК2"]
[{"$nulls":3},"0x002C",44,"Температура охладителя выпрямительной ячейки UZ2 ВК1"]
[{"$nulls":3},"0x002D",45,"Температура охладителя выпрямительной ячейки UZ2 ВК2"]
[{"$nulls":3},"0x002E",46,"Температура охладителя резисторного модуля UR1 ВК1"]
[{"$nulls":3},"0x002F",47,"Температура охладителя резисторного модуля UR1 ВК2"]
[{"$nulls":3},"0x0030",48,"Температура охладителя резисторного модуля UR2 ВК1"]
[{"$nulls":3},"0x0031",49,"Температура охладителя резисторного модуля UR2 ВК2"]
[{"$nulls":3},"0x0032",50,"Температура охладителя резисторного модуля UR3 ВК1"]
[{"$nulls":3},"0x0033",51,"Температура охладителя резисторного модуля UR3 ВК2"]
[{"$nulls":3},"0x0034",52,"Температура объёма Блок БВ ВК2"]
[{"$nulls":3},"0x0035",53,"Температура объёма Блок БВ ВК6"]
[{"$nulls":3},"0x0036",54,"Температура воды выпрямительной ячейки UZ1 BK11"]
[{"$nulls":3},"0x0037",55,"Температура воды выпрямительной ячейки UZ2 BK12"]
[{"$nulls":3},"0x0038",56,"Температура воды резисторного модуля UR1 BK17"]
[{"$nulls":3},"0x0039",57,"Температура воды резисторного модуля UR2 BK18"]
[{"$nulls":3},"0x003A",58,"Температура воды резисторного модуля UR3 BK19"]
[{"$nulls":3},"0x003B",59,"Статус датчиков температуры охладителя выпрямительной ячейки UZ1",0,"ВК1 - Статус (Онлайн/Офлайн)","1 - зеленый","0 - желтый"]
[{"$nulls":6},1,"ВК 1 - Статус инициализации"]
[{"$nulls":6},2,"BK1 - Предупреждение","1 - желтый","0 - серый"]
[{"$nulls":6},3,"ВК1 - Авария","1 - красный","0 - серый"]
[{"$nulls":6},4,"ВК2 - Статус (Онлайн/Офлайн)","1 - зеленый","0 - желтый"]
[{"$nulls":6},5,"ВК2 - Статус инициализации"]
[{"$nulls":6},6,"ВК2 - Предупреждение","1 - желтый","0 - серый"]
[{"$nulls":6},7,"ВК2 - Авария","1 - красный","0 - серый"]
[{"$nulls":6},8]
[{"$nulls":6},9]
[{"$nulls":6},10]
[{"$nulls":6},11]
[{"$nulls":6},12]
[{"$nulls":6},13]
[{"$nulls":6},14]
[{"$nulls":6},15]
[{"$nulls":3},{"$f":"\"0x\"&DEC2HEX(E227, 4)","v":"0x003C"},60,"Статус датчиков температуры охладителя выпрямительной ячейки UZ2",0,"ВК1 - Статус (Онлайн/Офлайн)","1 - зеленый","0 - желтый"]
[{"$nulls":6},1,"ВК 1 - Статус инициализации"]
[{"$nulls":6},2,"BK1 - Предупреждение","1 - желтый","0 - серый"]
[{"$nulls":6},3,"ВК1 - Авария","1 - красный","0 - серый"]
[{"$nulls":6},4,"ВК2 - Статус (Онлайн/Офлайн)","1 - зеленый","0 - желтый"]
[{"$nulls":6},5,"ВК2 - Статус инициализации"]
[{"$nulls":6},6,"ВК2 - Предупреждение","1 - желтый","0 - серый"]
[{"$nulls":6},7,"ВК2 - Авария","1 - красный","0 - серый"]
[{"$nulls":6},8]
[{"$nulls":6},9]
[{"$nulls":6},10]
[{"$nulls":6},11]
[{"$nulls":6},12]
[{"$nulls":6},13]
[{"$nulls":6},14]
[{"$nulls":6},15]
[{"$nulls":3},{"$f":"\"0x\"&DEC2HEX(E243, 4)","v":"0x003D"},61,"Статус датчиков температуры охладителя резисторного модуля UR1",0,"ВК1 - Статус (Онлайн/Офлайн)","1 - зеленый","0 - желтый"]
[{"$nulls":6},1,"ВК 1 - Статус инициализации"]
[{"$nulls":6},2,"BK1 - Предупреждение","1 - желтый","0 - серый"]
[{"$nulls":6},3,"ВК1 - Авария","1 - красный","0 - серый"]
[{"$nulls":6},4,"ВК2 - Статус (Онлайн/Офлайн)","1 - зеленый","0 - желтый"]
[{"$nulls":6},5,"ВК2 - Статус инициализации"]
[{"$nulls":6},6,"ВК2 - Предупреждение","1 - желтый","0 - серый"]
[{"$nulls":6},7,"ВК2 - Авария","1 - красный","0 - серый"]
[{"$nulls":6},8]
[{"$nulls":6},9]
[{"$nulls":6},10]
[{"$nulls":6},11]
[{"$nulls":6},12]
[{"$nulls":6},13]
[{"$nulls":6},14]
[{"$nulls":6},15]
[{"$nulls":3},{"$f":"\"0x\"&DEC2HEX(E259, 4)","v":"0x003E"},62,"Статус датчиков температуры охладителя резисторного модуля UR2",0,"ВК1 - Статус (Онлайн/Офлайн)","1 - зеленый","0 - желтый"]
[{"$nulls":6},1,"ВК 1 - Статус инициализации"]
[{"$nulls":6},2,"BK1 - Предупреждение","1 - желтый","0 - серый"]
[{"$nulls":6},3,"ВК1 - Авария","1 - красный","0 - серый"]
[{"$nulls":6},4,"ВК2 - Статус (Онлайн/Офлайн)","1 - зеленый","0 - желтый"]
[{"$nulls":6},5,"ВК2 - Статус инициализации"]
[{"$nulls":6},6,"ВК2 - Предупреждение","1 - желтый","0 - серый"]
[{"$nulls":6},7,"ВК2 - Авария","1 - красный","0 - серый"]
[{"$nulls":6},8]
[{"$nulls":6},9]
[{"$nulls":6},10]
[{"$nulls":6},11]
[{"$nulls":6},12]
[{"$nulls":6},13]
[{"$nulls":6},14]
[{"$nulls":6},15]
[{"$nulls":3},{"$f":"\"0x\"&DEC2HEX(E275, 4)","v":"0x003F"},63,"Статус датчиков температуры охладителя резисторного модуля UR3",0,"ВК1 - Статус (Онлайн/Офлайн)","1 - зеленый","0 - желтый"]
[{"$nulls":6},1,"ВК 1 - Статус инициализации"]
[{"$nulls":6},2,"BK1 - Предупреждение","1 - желтый","0 - серый"]
[{"$nulls":6},3,"ВК1 - Авария","1 - красный","0 - серый"]
[{"$nulls":6},4,"ВК2 - Статус (Онлайн/Офлайн)","1 - зеленый","0 - желтый"]
[{"$nulls":6},5,"ВК2 - Статус инициализации"]
[{"$nulls":6},6,"ВК2 - Предупреждение","1 - желтый","0 - серый"]
[{"$nulls":6},7,"ВК2 - Авария","1 - красный","0 - серый"]
[{"$nulls":6},8]
[{"$nulls":6},9]
[{"$nulls":6},10]
[{"$nulls":6},11]
[{"$nulls":6},12]
[{"$nulls":6},13]
[{"$nulls":6},14]
[{"$nulls":6},15]
[{"$nulls":3},{"$f":"\"0x\"&DEC2HEX(E291, 4)","v":"0x0040"},64,"Статус датчиков температуры объема Блок БВ",0,"ВК2 - Статус (Онлайн/Офлайн)","1 - зеленый","0 - желтый"]
[{"$nulls":6},1,"ВК2 - Статус инициализации"]
[{"$nulls":6},2,"BK3 - Предупреждение","1 - желтый","0 - серый"]
[{"$nulls":6},3,"ВК2 - Авария","1 - красный","0 - серый"]
[{"$nulls":6},4,"ВК6 - Статус (Онлайн/Офлайн)","1 - зеленый","0 - желтый"]
[{"$nulls":6},5,"ВК6 - Статус инициализации"]
[{"$nulls":6},6,"ВК6 - Предупреждение","1 - желтый","0 - серый"]
[{"$nulls":6},7,"ВК6 - Авария","1 - красный","0 - серый"]
[{"$nulls":6},8]
[{"$nulls":6},9]
[{"$nulls":6},10]
[{"$nulls":6},11]
[{"$nulls":6},12]
[{"$nulls":6},13]
[{"$nulls":6},14]
[{"$nulls":6},15,"Блок БВ - дверь закрыта","1 - зеленый","0 - серый"]
[{"$nulls":3},{"$f":"\"0x\"&DEC2HEX(E307, 4)","v":"0x0041"},65,"Статус датчиков температуры воды - Блок БВ",0,"Выпрямительная ячейка UZ1 BK11 - Статус","1 - зеленый","0 - желтый"]
[{"$nulls":6},1,"Выпрямительная ячейка UZ1 BK11 - Резерв"]
[{"$nulls":6},2,"Выпрямительная ячейка UZ1 BK11 - Предупреждение","1 - желтый","0 - серый"]
[{"$nulls":6},3,"Выпрямительная ячейка UZ1 BK11 - Авария","1 - красный","0 - серый"]
[{"$nulls":6},4,"Выпрямительная ячейка UZ2 BK12 - Статус","1 - зеленый","0 - желтый"]
[{"$nulls":6},5,"Выпрямительная ячейка UZ2 BK12 - Резерв"]
[{"$nulls":6},6,"Выпрямительная ячейка UZ2 BK12 - Предупреждение","1 - желтый","0 - серый"]
[{"$nulls":6},7,"Выпрямительная ячейка UZ2 BK12 - Авария","1 - красный","0 - серый"]
[{"$nulls":6},8,"Резисторный модуль UR1 BK17 - Статус","1 - зеленый","0 - желтый"]
[{"$nulls":6},9,"Резисторный модуль UR1 BK17 - Резерв"]
[{"$nulls":6},10,"Резисторный модуль UR1 BK17 - Предупреждение","1 - желтый","0 - серый"]
[{"$nulls":6},11,"Резисторный модуль UR1 BK17 - Авария","1 - красный","0 - серый"]
[{"$nulls":6},12,"Резисторный модуль UR2 BK18 - Статус","1 - зеленый","0 - желтый"]
[{"$nulls":6},13,"Резисторный модуль UR2 BK18 - Резерв"]
[{"$nulls":6},14,"Резисторный модуль UR2 BK18 - Предупреждение","1 - желтый","0 - серый"]
[{"$nulls":6},15,"Резисторный модуль UR2 BK18 - Авария","1 - красный","0 - серый"]
[{"$nulls":3},{"$f":"\"0x\"&DEC2HEX(E323, 4)","v":"0x0042"},66,"Статус датчиков температуры воды - Блок БВ",0,"Резисторный модуль UR3 BK19 - Статус","1 - зеленый","0 - желтый"]
[{"$nulls":6},1,"Резисторный модуль UR3 BK19 - Резерв"]
[{"$nulls":6},2,"Резисторный модуль UR3 BK19 - Предупреждение","1 - желтый","0 - серый"]
[{"$nulls":6},3,"Резисторный модуль UR3 BK19 - Авария","1 - красный","0 - серый"]
[{"$nulls":6},4]
[{"$nulls":6},5]
[{"$nulls":6},6]
[{"$nulls":6},7]
[{"$nulls":6},8]
[{"$nulls":6},9]
[{"$nulls":6},10]
[{"$nulls":6},11]
[{"$nulls":6},12]
[{"$nulls":6},13]
[{"$nulls":6},14]
[{"$nulls":6},15]
[null,null,"БК",{"$f":"\"0x\"&DEC2HEX(E339, 4)","v":"0x0043"},67,"Напряжение звена постоянного тока (В)"]
[{"$nulls":3},"0x0044",68,"Ток звена постоянного тока (+) (А)"]
[{"$nulls":3},"0x0045",69,"Ток звена постоянного тока (-) (А) "]
[{"$nulls":3},"0x0046",70,"Температура объёма БК ВК3"]
[{"$nulls":3},"0x0047",71,"Температура объёма БК ВК7"]
[{"$nulls":3},"0x0048",72,"Статус датчиков температуры объема БК",0,"ВК3 - Статус (Онлайн/Офлайн)","1 - зеленый","0 - желтый"]
[{"$nulls":6},1,"ВК3 - Статус инициализации"]
[{"$nulls":6},2,"ВК3 - Предупреждение","1 - желтый","0 - серый"]
[{"$nulls":6},3,"ВК3 - Авария","1 - красный","0 - серый"]
[{"$nulls":6},4,"ВК7 - Статус (Онлайн/Офлайн)","1 - зеленый","0 - желтый"]
[{"$nulls":6},5,"ВК7 - Статус инициализации"]
[{"$nulls":6},6,"ВК7 - Предупреждение","1 - желтый","0 - серый"]
[{"$nulls":6},7,"ВК7 - Авария","1 - красный","0 - серый"]
[{"$nulls":6},8]
[{"$nulls":6},9]
[{"$nulls":6},10]
[{"$nulls":6},11]
[{"$nulls":6},12]
[{"$nulls":6},13]
[{"$nulls":6},14]
[{"$nulls":6},15,"БК - дверь закрыта","1 - зеленый","0 - серый"]
[null,null,"БИ",{"$f":"\"0x\"&DEC2HEX(E360, 4)","v":"0x0049"},73,"Ток ячейки чопперной UF1 (А)"]
[{"$nulls":3},"0x004A",74,"Ток ячейки фазной AF1 (А)"]
[{"$nulls":3},"0x004B",75,"Ток ячейки фазной AF2 (А)"]
[{"$nulls":3},"0x004C",76,"Ток ячейки фазной AF3 (А)"]
[{"$nulls":3},"0x004D",77,"Температура охладителя фазной ячейки AF1 ВК1"]
[{"$nulls":3},"0x004E",78,"Температура охладителя фазной ячейки AF1 ВК2"]
[{"$nulls":3},"0x004F",79,"Температура охладителя фазной ячейки AF1 ВК3"]
[{"$nulls":3},"0x0050",80,"Температура охладителя фазной ячейки AF1 ВК4"]
[{"$nulls":3},"0x0051",81,"Температура охладителя фазной ячейки AF1 ВК5"]
[{"$nulls":3},"0x0052",82,"Температура охладителя фазной ячейки AF1 ВК6"]
[{"$nulls":3},"0x0053",83,"Температура охладителя фазной ячейки AF1 ВК7"]
[{"$nulls":3},"0x0054",84,"Температура охладителя фазной ячейки AF1 ВК8"]
[{"$nulls":3},"0x0055",85,"Температура охладителя фазной ячейки AF2 ВК1"]
[{"$nulls":3},"0x0056",86,"Температура охладителя фазной ячейки AF2 ВК2"]
[{"$nulls":3},"0x0057",87,"Температура охладителя фазной ячейки AF2 ВК3"]
[{"$nulls":3},"0x0058",88,"Температура охладителя фазной ячейки AF2 ВК4"]
[{"$nulls":3},"0x0059",89,"Температура охладителя фазной ячейки AF2 ВК5"]
[{"$nulls":3},"0x005A",90,"Температура охладителя фазной ячейки AF2 ВК6"]
[{"$nulls":3},"0x005B",91,"Температура охладителя фазной ячейки AF2 ВК7"]
[{"$nulls":3},"0x005C",92,"Температура охладителя фазной ячейки AF2 ВК8"]
[{"$nulls":3},"0x005D",93,"Температура охладителя фазной ячейки AF3 ВК1"]
[{"$nulls":3},"0x005E",94,"Температура охладителя фазной ячейки AF3 ВК2"]
[{"$nulls":3},"0x005F",95,"Температура охладителя фазной ячейки AF3 ВК3"]
[{"$nulls":3},"0x0060",96,"Температура охладителя фазной ячейки AF3 ВК4"]
[{"$nulls":3},"0x0061",97,"Температура охладителя фазной ячейки AF3 ВК5"]
[{"$nulls":3},"0x0062",98,"Температура охладителя фазной ячейки AF3 ВК6"]
[{"$nulls":3},"0x0063",99,"Температура охладителя фазной ячейки AF3 ВК7"]
[{"$nulls":3},"0x0064",100,"Температура охладителя фазной ячейки AF3 ВК8"]
[{"$nulls":3},"0x0065",101,"Температура охладителя чопперной ячейки UF1 ВК1"]
[{"$nulls":3},"0x0066",102,"Температура охладителя чопперной ячейки UF1 ВК2"]
[{"$nulls":3},"0x0067",103,"Температура охладителя чопперной ячейки UF1 ВК3"]
[{"$nulls":3},"0x0068",104,"Температура охладителя чопперной ячейки UF1 ВК4"]
[{"$nulls":3},"0x0069",105,"Температура объёма БИ ВК4"]
[{"$nulls":3},"0x006A",106,"Температура объёма БИ ВК8"]
[{"$nulls":3},"0x006B",107,"Температура воды чопперной ячейки UF1 ВК28"]
[{"$nulls":3},"0x006C",108,"Температура воды фазной ячейки AF1 ВК13"]
[{"$nulls":3},"0x006D",109,"Температура воды фазной ячейки AF2 ВК20"]
[{"$nulls":3},"0x006E",110,"Температура воды фазной ячейки AF3 ВК24"]
[{"$nulls":3},"0x006F",111,"Статусы фазных и чопперной ячеек",0,"Состояние фазного модуля AF1","0 норма","1 предупреждение"]
[{"$nulls":6},1,null,"2 авария","4 резерв"]
[{"$nulls":6},2,"Состояние фазного модуля AF2","0 норма","1 предупреждение"]
[{"$nulls":6},3,null,"2 авария","4 резерв"]
[{"$nulls":6},4,"Состояние фазного модуля AF3","0 норма","1 предупреждение"]
[{"$nulls":6},5,null,"2 авария","4 резерв"]
[{"$nulls":6},6,"Состояние чопперного модуля UF1","0 норма","1 предупреждение"]
[{"$nulls":6},7,null,"2 авария","4 резерв"]
[{"$nulls":6},8]
[{"$nulls":6},9]
[{"$nulls":6},10]
[{"$nulls":6},11]
[{"$nulls":6},12]
[{"$nulls":6},13]
[{"$nulls":6},14]
[{"$nulls":6},15]
[{"$nulls":3},{"$f":"\"0x\"&DEC2HEX(E414, 4)","v":"0x0070"},112,"Статус датчиков температуры охладителя фазной ячейки AF1",0,"ВК1 - Статус (Онлайн/Офлайн)","1 - зеленый","0 - желтый"]
[{"$nulls":6},1,"ВК 1 - Статус инициализации"]
[{"$nulls":6},2,"BK1 - Предупреждение","1 - желтый","0 - серый"]
[{"$nulls":6},3,"ВК1 - Авария","1 - красный","0 - серый"]
[{"$nulls":6},4,"ВК2 - Статус (Онлайн/Офлайн)","1 - зеленый","0 - желтый"]
[{"$nulls":6},5,"ВК2 - Статус инициализации"]
[{"$nulls":6},6,"ВК2 - Предупреждение","1 - желтый","0 - серый"]
[{"$nulls":6},7,"ВК2 - Авария","1 - красный","0 - серый"]
[{"$nulls":6},8,"ВК3 - Статус (Онлайн/Офлайн)","1 - зеленый","0 - желтый"]
[{"$nulls":6},9,"ВК3 - Статус инициализации"]
[{"$nulls":6},10,"BK3 - Предупреждение","1 - желтый","0 - серый"]
[{"$nulls":6},11,"ВК3 - Авария","1 - красный","0 - серый"]
[{"$nulls":6},12,"ВК4 - Статус (Онлайн/Офлайн)","1 - зеленый","0 - желтый"]
[{"$nulls":6},13,"ВК4 - Статус инициализации"]
[{"$nulls":6},14,"ВК4 - Предупреждение","1 - желтый","0 - серый"]
[{"$nulls":6},15,"ВК4 - Авария","1 - красный","0 - серый"]
[{"$nulls":3},{"$f":"\"0x\"&DEC2HEX(E430, 4)","v":"0x0071"},113,"Статус датчиков температуры охладителя фазной ячейки AF1",0,"ВК5 - Статус (Онлайн/Оффлайн)","1 - зеленый","0 - желтый"]
[{"$nulls":6},1,"ВК5 - Статус инициализации"]
[{"$nulls":6},2,"BK5 - Предупреждение","1 - желтый","0 - серый"]
[{"$nulls":6},3,"ВК5 - Авария","1 - красный","0 - серый"]
[{"$nulls":6},4,"ВК6 - Статус (Онлайн/Оффлайн)","1 - зеленый","0 - желтый"]
[{"$nulls":6},5,"ВК6 - Статус инициализации"]
[{"$nulls":6},6,"ВК6 - Предупреждение","1 - желтый","0 - серый"]
[{"$nulls":6},7,"ВК6 - Авария","1 - красный","0 - серый"]
[{"$nulls":6},8,"ВК7 - Статус (Онлайн/Оффлайн)","1 - зеленый","0 - желтый"]
[{"$nulls":6},9,"ВК7 - Статус инициализации"]
[{"$nulls":6},10,"BK7 - Предупреждение","1 - желтый","0 - серый"]
[{"$nulls":6},11,"ВК7 - Авария","1 - красный","0 - серый"]
[{"$nulls":6},12,"ВК8 - Статус (Онлайн/Оффлайн)","1 - зеленый","0 - желтый"]
[{"$nulls":6},13,"ВК8 - Статус инициализации"]
[{"$nulls":6},14,"ВК8 - Предупреждение","1 - желтый","0 - серый"]
[{"$nulls":6},15,"ВК8 - Авария","1 - красный","0 - серый"]
[{"$nulls":3},{"$f":"\"0x\"&DEC2HEX(E446, 4)","v":"0x0072"},114,"Статус датчиков температуры охладителя фазной ячейки AF2",0,"ВК1 - Статус (Онлайн/Офлайн)","1 - зеленый","0 - желтый"]
[{"$nulls":6},1,"ВК 1 - Статус инициализации"]
[{"$nulls":6},2,"BK1 - Предупреждение","1 - желтый","0 - серый"]
[{"$nulls":6},3,"ВК1 - Авария","1 - красный","0 - серый"]
[{"$nulls":6},4,"ВК2 - Статус (Онлайн/Офлайн)","1 - зеленый","0 - желтый"]
[{"$nulls":6},5,"ВК2 - Статус инициализации"]
[{"$nulls":6},6,"ВК2 - Предупреждение","1 - желтый","0 - серый"]
[{"$nulls":6},7,"ВК2 - Авария","1 - красный","0 - серый"]
[{"$nulls":6},8,"ВК3 - Статус (Онлайн/Офлайн)","1 - зеленый","0 - желтый"]
[{"$nulls":6},9,"ВК3 - Статус инициализации"]
[{"$nulls":6},10,"BK3 - Предупреждение","1 - желтый","0 - серый"]
[{"$nulls":6},11,"ВК3 - Авария","1 - красный","0 - серый"]
[{"$nulls":6},12,"ВК4 - Статус (Онлайн/Офлайн)","1 - зеленый","0 - желтый"]
[{"$nulls":6},13,"ВК4 - Статус инициализации"]
[{"$nulls":6},14,"ВК4 - Предупреждение","1 - желтый","0 - серый"]
[{"$nulls":6},15,"ВК4 - Авария","1 - красный","0 - серый"]
[{"$nulls":3},{"$f":"\"0x\"&DEC2HEX(E462, 4)","v":"0x0073"},115,"Статус датчиков температуры охладителя фазной ячейки AF2",0,"ВК5 - Статус (Онлайн/Оффлайн)","1 - зеленый","0 - желтый"]
[{"$nulls":6},1,"ВК5 - Статус инициализации"]
[{"$nulls":6},2,"BK5 - Предупреждение","1 - желтый","0 - серый"]
[{"$nulls":6},3,"ВК5 - Авария","1 - красный","0 - серый"]
[{"$nulls":6},4,"ВК6 - Статус (Онлайн/Оффлайн)","1 - зеленый","0 - желтый"]
[{"$nulls":6},5,"ВК6 - Статус инициализации"]
[{"$nulls":6},6,"ВК6 - Предупреждение","1 - желтый","0 - серый"]
[{"$nulls":6},7,"ВК6 - Авария","1 - красный","0 - серый"]
[{"$nulls":6},8,"ВК7 - Статус (Онлайн/Оффлайн)","1 - зеленый","0 - желтый"]
[{"$nulls":6},9,"ВК7 - Статус инициализации"]
[{"$nulls":6},10,"BK7 - Предупреждение","1 - желтый","0 - серый"]
[{"$nulls":6},11,"ВК7 - Авария","1 - красный","0 - серый"]
[{"$nulls":6},12,"ВК8 - Статус (Онлайн/Оффлайн)","1 - зеленый","0 - желтый"]
[{"$nulls":6},13,"ВК8 - Статус инициализации"]
[{"$nulls":6},14,"ВК8 - Предупреждение","1 - желтый","0 - серый"]
[{"$nulls":6},15,"ВК8 - Авария","1 - красный","0 - серый"]
[{"$nulls":3},{"$f":"\"0x\"&DEC2HEX(E478, 4)","v":"0x0074"},116,"Статус датчиков температуры охладителя фазной ячейки AF3",0,"ВК1 - Статус (Онлайн/Офлайн)","1 - зеленый","0 - желтый"]
[{"$nulls":6},1,"ВК 1 - Статус инициализации"]
[{"$nulls":6},2,"BK1 - Предупреждение","1 - желтый","0 - серый"]
[{"$nulls":6},3,"ВК1 - Авария","1 - красный","0 - серый"]
[{"$nulls":6},4,"ВК2 - Статус (Онлайн/Офлайн)","1 - зеленый","0 - желтый"]
[{"$nulls":6},5,"ВК2 - Статус инициализации"]
[{"$nulls":6},6,"ВК2 - Предупреждение","1 - желтый","0 - серый"]
[{"$nulls":6},7,"ВК2 - Авария","1 - красный","0 - серый"]
[{"$nulls":6},8,"ВК3 - Статус (Онлайн/Офлайн)","1 - зеленый","0 - желтый"]
[{"$nulls":6},9,"ВК3 - Статус инициализации"]
[{"$nulls":6},10,"BK3 - Предупреждение","1 - желтый","0 - серый"]
[{"$nulls":6},11,"ВК3 - Авария","1 - красный","0 - серый"]
[{"$nulls":6},12,"ВК4 - Статус (Онлайн/Офлайн)","1 - зеленый","0 - желтый"]
[{"$nulls":6},13,"ВК4 - Статус инициализации"]
[{"$nulls":6},14,"ВК4 - Предупреждение","1 - желтый","0 - серый"]
[{"$nulls":6},15,"ВК4 - Авария","1 - красный","0 - серый"]
[{"$nulls":3},{"$f":"\"0x\"&DEC2HEX(E494, 4)","v":"0x0075"},117,"Статус датчиков температуры охладителя фазной ячейки AF3",0,"ВК5 - Статус (Онлайн/Оффлайн)","1 - зеленый","0 - желтый"]
[{"$nulls":6},1,"ВК5 - Статус инициализации"]
[{"$nulls":6},2,"BK5 - Предупреждение","1 - желтый","0 - серый"]
[{"$nulls":6},3,"ВК5 - Авария","1 - красный","0 - серый"]
[{"$nulls":6},4,"ВК6 - Статус (Онлайн/Оффлайн)","1 - зеленый","0 - желтый"]
[{"$nulls":6},5,"ВК6 - Статус инициализации"]
[{"$nulls":6},6,"ВК6 - Предупреждение","1 - желтый","0 - серый"]
[{"$nulls":6},7,"ВК6 - Авария","1 - красный","0 - серый"]
[{"$nulls":6},8,"ВК7 - Статус (Онлайн/Оффлайн)","1 - зеленый","0 - желтый"]
[{"$nulls":6},9,"ВК7 - Статус инициализации"]
[{"$nulls":6},10,"BK7 - Предупреждение","1 - желтый","0 - серый"]
[{"$nulls":6},11,"ВК7 - Авария","1 - красный","0 - серый"]
[{"$nulls":6},12,"ВК8 - Статус (Онлайн/Оффлайн)","1 - зеленый","0 - желтый"]
[{"$nulls":6},13,"ВК8 - Статус инициализации"]
[{"$nulls":6},14,"ВК8 - Предупреждение","1 - желтый","0 - серый"]
[{"$nulls":6},15,"ВК8 - Авария","1 - красный","0 - серый"]
[{"$nulls":3},{"$f":"\"0x\"&DEC2HEX(E510, 4)","v":"0x0076"},118,"Статус датчиков температуры охладителя чопперной ячейки UF1",0,"ВК1 - Статус (Онлайн/Оффлайн)","1 - зеленый","0 - желтый"]
[{"$nulls":6},1,"ВК 1 - Статус инициализации"]
[{"$nulls":6},2,"BK1 - Предупреждение","1 - желтый","0 - серый"]
[{"$nulls":6},3,"ВК1 - Авария","1 - красный","0 - серый"]
[{"$nulls":6},4,"ВК2 - Статус (Онлайн/Оффлайн)","1 - зеленый","0 - желтый"]
[{"$nulls":6},5,"ВК2 - Статус инициализации"]
[{"$nulls":6},6,"ВК2 - Предупреждение","1 - желтый","0 - серый"]
[{"$nulls":6},7,"ВК2 - Авария","1 - красный","0 - серый"]
[{"$nulls":6},8,"ВК3 - Статус (Онлайн/Оффлайн)","1 - зеленый","0 - желтый"]
[{"$nulls":6},9,"ВК3 - Статус инициализации"]
[{"$nulls":6},10,"BK3 - Предупреждение","1 - желтый","0 - серый"]
[{"$nulls":6},11,"ВК3 - Авария","1 - красный","0 - серый"]
[{"$nulls":6},12,"ВК4 - Статус (Онлайн/Оффлайн)","1 - зеленый","0 - желтый"]
[{"$nulls":6},13,"ВК4 - Статус инициализации"]
[{"$nulls":6},14,"ВК4 - Предупреждение","1 - желтый","0 - серый"]
[{"$nulls":6},15,"ВК4 - Авария","1 - красный","0 - серый"]
[{"$nulls":3},{"$f":"\"0x\"&DEC2HEX(E526, 4)","v":"0x0077"},119,"Статус датчиков температуры объема БИ",0,"ВК4 - Статус (Онлайн/Офлайн)","1 - зеленый","0 - желтый"]
[{"$nulls":6},1,"ВК4 - Статус инициализации"]
[{"$nulls":6},2,"ВК4 - Предупреждение","1 - желтый","0 - серый"]
[{"$nulls":6},3,"ВК4 - Авария","1 - красный","0 - серый"]
[{"$nulls":6},4,"ВК8 - Статус (Онлайн/Офлайн)","1 - зеленый","0 - желтый"]
[{"$nulls":6},5,"ВК8 - Статус инициализации"]
[{"$nulls":6},6,"ВК8 - Предупреждение","1 - желтый","0 - серый"]
[{"$nulls":6},7,"ВК8 - Авария","1 - красный","0 - серый"]
[{"$nulls":6},8]
[{"$nulls":6},9]
[{"$nulls":6},10]
[{"$nulls":6},11]
[{"$nulls":6},12]
[{"$nulls":6},13]
[{"$nulls":6},14]
[{"$nulls":6},15,"БИ - дверь закрыта","1 - зеленый","0 - серый"]
[{"$nulls":3},{"$f":"\"0x\"&DEC2HEX(E542, 4)","v":"0x0078"},120,"Статус датчиков температуры воды - БИ",0,"Чопперная ячейка UF1 ВК28 - Статус","1 - зеленый","0 - серый"]
[{"$nulls":6},1,"Чопперная ячейка UF1 ВК28 - Резерв"]
[{"$nulls":6},2,"Чопперная ячейка UF1 ВК28 - Предупреждение","1 - желтый","0 - серый"]
[{"$nulls":6},3,"Чопперная ячейка UF1 ВК28 - Авария","1 - красный","0 - серый"]
[{"$nulls":6},4]
[{"$nulls":6},5]
[{"$nulls":6},6]
[{"$nulls":6},7]
[{"$nulls":6},8]
[{"$nulls":6},9]
[{"$nulls":6},10]
[{"$nulls":6},11]
[{"$nulls":6},12]
[{"$nulls":6},13]
[{"$nulls":6},14]
[{"$nulls":6},15]
[{"$nulls":3},{"$f":"\"0x\"&DEC2HEX(E558, 4)","v":"0x0079"},121,"Статус датчиков температуры воды - БИ",0,"Фазной ячейки AF1 ВК13 - Статус","1 - зеленый","0 - серый"]
[{"$nulls":6},1,"Фазной ячейки AF1 ВК13 - Резерв"]
[{"$nulls":6},2,"Фазной ячейки AF1 ВК13 - Предупреждение","1 - желтый","0 - серый"]
[{"$nulls":6},3,"Фазной ячейки AF1 ВК13 - Авария","1 - красный","0 - серый"]
[{"$nulls":6},4,"Фазной ячейки AF2 ВК20 - Статус","1 - зеленый","0 - серый"]
[{"$nulls":6},5,"Фазной ячейки AF2 ВК20 - Резерв"]
[{"$nulls":6},6,"Фазной ячейки AF2 ВК20 - Предупреждение","1 - желтый","0 - серый"]
[{"$nulls":6},7,"Фазной ячейки AF2 ВК20 - Авария","1 - красный","0 - серый"]
[{"$nulls":6},8,"Фазной ячейки AF3 ВК24 - Статус","1 - зеленый","0 - серый"]
[{"$nulls":6},9,"Фазной ячейки AF3 ВК24 - Резерв"]
[{"$nulls":6},10,"Фазной ячейки AF3 ВК24 - Предупреждение","1 - желтый","0 - серый"]
[{"$nulls":6},11,"Фазной ячейки AF3 ВК24 - Авария","1 - красный","0 - серый"]
[{"$nulls":6},12,null,"1 - зеленый","0 - серый"]
[{"$nulls":6},13]
[{"$nulls":6},14,null,"1 - желтый","0 - серый"]
[{"$nulls":6},15,null,"1 - красный","0 - серый"]
[null,null,"БВШ",{"$f":"\"0x\"&DEC2HEX(E574, 4)","v":"0x007A"},122,"Температура объёма БВШ ВК4"]
[{"$nulls":3},"0x007B",123,"Температура объёма БВШ ВК8"]
[{"$nulls":3},"0x007C",124,"Статус датчиков температуры воды - БВШ",0,"ВК1 - Статус (Онлайн/Офлайн)","1 - зеленый","0 - желтый"]
[{"$nulls":6},1,"ВК 1 - Статус инициализации"]
[{"$nulls":6},2,"BK1 - Предупреждение","1 - желтый","0 - серый"]
[{"$nulls":6},3,"ВК1 - Авария","1 - красный","0 - серый"]
[{"$nulls":6},4,"ВК2 - Статус (Онлайн/Офлайн)","1 - зеленый","0 - желтый"]
[{"$nulls":6},5,"ВК2 - Статус инициализации"]
[{"$nulls":6},6,"ВК2 - Предупреждение","1 - желтый","0 - серый"]
[{"$nulls":6},7,"ВК2 - Авария","1 - красный","0 - серый"]
[{"$nulls":6},8]
[{"$nulls":6},9]
[{"$nulls":6},10]
[{"$nulls":6},11]
[{"$nulls":6},12]
[{"$nulls":6},13]
[{"$nulls":6},14]
[{"$nulls":6},15,"БВШ - дверь закрыта","1 - зеленый","0 - серый"]
[null,null,"Система охлаждения",{"$f":"\"0x\"&DEC2HEX(E592, 4)","v":"0x007D"},125,"Давление на входе внутреннего контура PT1 (МПа)"]
[{"$nulls":3},"0x007E",126,"Давление на выходе внутреннего контура PT2 (МПа)"]
[{"$nulls":3},"0x007F",127,"Показания расходомера (м3/ч)"]
[{"$nulls":3},"0x0080",128,"Температуры воды \"Вход\" BK9"]
[{"$nulls":3},"0x0081",129,"Температуры воды \"Выход\" BK10"]
[{"$nulls":3},"0x0082",130,"Статус датчиков температуры воды - Система охлаждения",0,"Вход воды BK9 - Статус","1 - зеленый","0 - серый"]
[{"$nulls":6},1,"Вход воды BK9 - Резерв"]
[{"$nulls":6},2,"Вход воды BK9 - Предупреждение","1 - желтый","0 - серый"]
[{"$nulls":6},3,"Вход воды BK9 - Авария","1 - красный","0 - серый"]
[{"$nulls":6},4,"Выход воды BK10 - Статус","1 - зеленый","0 - желтый"]
[{"$nulls":6},5,"Выход воды BK10 - Резерв"]
[{"$nulls":6},6,"Выход воды BK10 - Предупреждение","1 - желтый","0 - серый"]
[{"$nulls":6},7,"Выход воды BK10 - Авария","1 - красный","0 - серый"]
[{"$nulls":6},8]
[{"$nulls":6},9]
[{"$nulls":6},10]
[{"$nulls":6},11]
[{"$nulls":6},12]
[{"$nulls":6},13]
[{"$nulls":6},14]
[{"$nulls":6},15,"Датчик протечки","1 - зеленый","0 - красный"]
[null,"Передача значений уставок (Верхний порог предупреждения)","Осн. данные",{"$f":"\"0x\"&DEC2HEX(E613, 4)","v":"0x0083"},131,"Порог предупреждения о высоком токе на выходе фазы U"]
[{"$nulls":3},"0x0084",132,"Порог предупреждения о высоком токе на выходе фазы V"]
[{"$nulls":3},"0x0085",133,"Порог предупреждения о высоком токе на выходе фазы W"]
[null,null,"Блок БСУ","0x0086",134,"УКСИ - Предупредительная уставка"]
[{"$nulls":3},"0x0087",135,"Температура объёма БСУ ВК1 - Верхний порог предупреждения"]
[{"$nulls":3},"0x0088",136,"Температура объёма БСУ ВК5 - Верхний порог предупреждения"]
[null,null,"Блок БВ","0x0089",137,"Порог предупреждения о высоком напряжении на входе А1В1"]
[{"$nulls":3},"0x008A",138,"Порог предупреждения о высоком напряжении на входе В1С1"]
[{"$nulls":3},"0x008B",139,"Порог предупреждения о высоком напряжении на входе А2В2"]
[{"$nulls":3},"0x008C",140,"Порог предупреждения о высоком напряжении на входе В2С2"]
[{"$nulls":3},"0x008D",141,"Частота входного напряжения выпрямителя UZ1 (Гц) - Верхний порог предупреждения"]
[{"$nulls":3},"0x008E",142,"Частота входного напряжения выпрямителя UZ2 (Гц) - Верхний порог предупреждения"]
[{"$nulls":3},"0x008F",143,"Температура охладителя выпрямительной ячейки UZ1 ВК1 - Верхний порог предупреждения"]
[{"$nulls":3},"0x0090",144,"Температура охладителя выпрямительной ячейки UZ1 ВК2 - Верхний порог предупреждения"]
[{"$nulls":3},"0x0091",145,"Температура охладителя выпрямительной ячейки UZ2 ВК1 - Верхний порог предупреждения"]
[{"$nulls":3},"0x0092",146,"Температура охладителя выпрямительной ячейки UZ2 ВК2 - Верхний порог предупреждения"]
[{"$nulls":3},"0x0093",147,"Температура охладителя резисторного модуля UR1 ВК1 - Верхний порог предупреждения"]
[{"$nulls":3},"0x0094",148,"Температура охладителя резисторного модуля UR1 ВК2 - Верхний порог предупреждения"]
[{"$nulls":3},"0x0095",149,"Температура охладителя резисторного модуля UR2 ВК1 - Верхний порог предупреждения"]
[{"$nulls":3},"0x0096",150,"Температура охладителя резисторного модуля UR2 ВК2 - Верхний порог предупреждения"]
[{"$nulls":3},"0x0097",151,"Температура охладителя резисторного модуля UR3 ВК1 - Верхний порог предупреждения"]
[{"$nulls":3},"0x0098",152,"Температура охладителя резисторного модуля UR3 ВК2 - Верхний порог предупреждения"]
[{"$nulls":3},"0x0099",153,"Температура объёма Блок БВ ВК2 - Верхний порог предупреждения"]
[{"$nulls":3},"0x009A",154,"Температура объёма Блок БВ ВК6 - Верхний порог предупреждения"]
[{"$nulls":3},"0x009B",155,"Температура воды выпрямительной ячейки UZ1 ВК11 - Верхний порог предупреждения"]
[{"$nulls":3},"0x009C",156,"Температура воды выпрямительной ячейки UZ2 ВК12 - Верхний порог предупреждения"]
[{"$nulls":3},"0x009D",157,"Температура воды резисторного модуля UR1 ВК17 - Верхний порог предупреждения"]
[{"$nulls":3},"0x009E",158,"Температура воды резисторного модуля UR2 ВК18 - Верхний порог предупреждения"]
[{"$nulls":3},"0x009F",159,"Температура воды резисторного модуля UR3 ВК19 - Верхний порог предупреждения"]
[null,null,"БК","0x00A0",160,"Напряжение звена постоянного тока (В) - Верхний порог предупреждения"]
[{"$nulls":3},"0x00A1",161,"Ток звена постоянного тока (+) (А) - Верхний порог предупреждения"]
[{"$nulls":3},"0x00A2",162,"Ток звена постоянного тока (-) (А) - Верхний порог предупреждения"]
[{"$nulls":3},"0x00A3",163,"Температура объёма БК ВК3 - Верхний порог предупреждения"]
[{"$nulls":3},"0x00A4",164,"Температура объёма БК ВК7 - Верхний порог предупреждения"]
[null,null,"БИ","0x00A5",165,"Ток ячейки чопперной UF1 (А) - Верхний порог предупреждения"]
[{"$nulls":3},"0x00A6",166,"Ток ячейки фазной AF1 (А) - Верхний порог предупреждения"]
[{"$nulls":3},"0x00A7",167,"Ток ячейки фазной AF2 (А) - Верхний порог предупреждения"]
[{"$nulls":3},"0x00A8",168,"Ток ячейки фазной AF3 (А) - Верхний порог предупреждения"]
[{"$nulls":3},"0x00A9",169,"Температура охладителя фазной ячейки AF1 ВК1 - Верхний порог предупреждения"]
[{"$nulls":3},"0x00AA",170,"Температура охладителя фазной ячейки AF1 ВК2 - Верхний порог предупреждения"]
[{"$nulls":3},"0x00AB",171,"Температура охладителя фазной ячейки AF1 ВК3 - Верхний порог предупреждения"]
[{"$nulls":3},"0x00AC",172,"Температура охладителя фазной ячейки AF1 ВК4 - Верхний порог предупреждения"]
[{"$nulls":3},"0x00AD",173,"Температура охладителя фазной ячейки AF1 ВК5 - Верхний порог предупреждения"]
[{"$nulls":3},"0x00AE",174,"Температура охладителя фазной ячейки AF1 ВК6 - Верхний порог предупреждения"]
[{"$nulls":3},"0x00AF",175,"Температура охладителя фазной ячейки AF1 ВК7 - Верхний порог предупреждения"]
[{"$nulls":3},"0x00B0",176,"Температура охладителя фазной ячейки AF1 ВК8 - Верхний порог предупреждения"]
[{"$nulls":3},"0x00B1",177,"Температура охладителя фазной ячейки AF2 ВК1 - Верхний порог предупреждения"]
[{"$nulls":3},"0x00B2",178,"Температура охладителя фазной ячейки AF2 ВК2 - Верхний порог предупреждения"]
[{"$nulls":3},"0x00B3",179,"Температура охладителя фазной ячейки AF2 ВК3 - Верхний порог предупреждения"]
[{"$nulls":3},"0x00B4",180,"Температура охладителя фазной ячейки AF2 ВК4 - Верхний порог предупреждения"]
[{"$nulls":3},"0x00B5",181,"Температура охладителя фазной ячейки AF2 ВК5 - Верхний порог предупреждения"]
[{"$nulls":3},"0x00B6",182,"Температура охладителя фазной ячейки AF2 ВК6 - Верхний порог предупреждения"]
[{"$nulls":3},"0x00B7",183,"Температура охладителя фазной ячейки AF2 ВК7 - Верхний порог предупреждения"]
[{"$nulls":3},"0x00B8",184,"Температура охладителя фазной ячейки AF2 ВК8 - Верхний порог предупреждения"]
[{"$nulls":3},"0x00B9",185,"Температура охладителя фазной ячейки AF3 ВК1 - Верхний порог предупреждения"]
[{"$nulls":3},"0x00BA",186,"Температура охладителя фазной ячейки AF3 ВК2 - Верхний порог предупреждения"]
[{"$nulls":3},"0x00BB",187,"Температура охладителя фазной ячейки AF3 ВК3 - Верхний порог предупреждения"]
[{"$nulls":3},"0x00BC",188,"Температура охладителя фазной ячейки AF3 ВК4 - Верхний порог предупреждения"]
[{"$nulls":3},"0x00BD",189,"Температура охладителя фазной ячейки AF3 ВК5 - Верхний порог предупреждения"]
[{"$nulls":3},"0x00BE",190,"Температура охладителя фазной ячейки AF3 ВК6 - Верхний порог предупреждения"]
[{"$nulls":3},"0x00BF",191,"Температура охладителя фазной ячейки AF3 ВК7 - Верхний порог предупреждения"]
[{"$nulls":3},"0x00C0",192,"Температура охладителя фазной ячейки AF3 ВК8 - Верхний порог предупреждения"]
[{"$nulls":3},"0x00C1",193,"Температура охладителя чопперной ячейки UF1 ВК1 - Верхний порог предупреждения"]
[{"$nulls":3},"0x00C2",194,"Температура охладителя чопперной ячейки UF1 ВК2 - Верхний порог предупреждения"]
[{"$nulls":3},"0x00C3",195,"Температура охладителя чопперной ячейки UF1 ВК3 - Верхний порог предупреждения"]
[{"$nulls":3},"0x00C4",196,"Температура охладителя чопперной ячейки UF1 ВК4 - Верхний порог предупреждения"]
[{"$nulls":3},"0x00C5",197,"Температура объёма БИ ВК4 - Верхний порог предупреждения"]
[{"$nulls":3},"0x00C6",198,"Температура объёма БИ ВК8 - Верхний порог предупреждения"]
[{"$nulls":3},"0x00C7",199,"Температура воды чопперной ячейки UF1 ВК28 - Верхний порог предупреждения"]
[{"$nulls":3},"0x00C8",200,"Температура воды фазной ячейки AF1 ВК13 - Верхний порог предупреждения"]
[{"$nulls":3},"0x00C9",201,"Температура воды фазной ячейки AF2 ВК20 - Верхний порог предупреждения"]
[{"$nulls":3},"0x00CA",202,"Температура воды фазной ячейки AF3 ВК24 - Верхний порог предупреждения"]
[null,null,"БВШ","0x00CB",203,"Температура объёма БВШ ВК4 - Верхний порог предупреждения"]
[{"$nulls":3},"0x00CC",204,"Температура объёма БВШ ВК8 - Верхний порог предупреждения"]
[null,null,"Система охлаждения","0x00CD",205,"Давление на входе внутреннего контура PT1 (МПа) - Верхний порог предупреждения"]
[{"$nulls":3},"0x00CE",206,"Давление на выходе внутреннего контура PT2 (МПа)-Верхний порог предупреждения"]
[{"$nulls":3},"0x00CF",207,"Показания расходомера (м3/ч) - Верхний порог предупреждения"]
[{"$nulls":3},"0x00D0",208,"Температуры воды \"Вход\" BK9  - Верхний порог предупреждения"]
[{"$nulls":3},"0x00D1",209,"Температуры воды \"Выход\" BK10 - Верхний порог предупреждения"]
[null,"Передача значений уставок (Верхний порог аварии)","Основные данные","0x00D2",210,"Порог аварийно высокого тока на выходе фазы U"]
[{"$nulls":3},"0x00D3",211,"Порог аварийно высокого тока на выходе фазы V"]
[{"$nulls":3},"0x00D4",212,"Порог аварийно высокого тока на выходе фазы W"]
[null,null,"Блок БСУ","0x00D5",213,"УКСИ - Аварийная уставка"]
[{"$nulls":3},"0x00D6",214,"Температура объёма БСУ ВК1  - Верхний порог аварии"]
[{"$nulls":3},"0x00D7",215,"Температура объёма БСУ ВК5  - Верхний порог аварии"]
[null,null,"Блок БВ","0x00D8",216,"Порог аварийно высокого напряжения на входе А1В1"]
[{"$nulls":3},"0x00D9",217,"Порог аварийно высокого напряжения на входе В1С1"]
[{"$nulls":3},"0x00DA",218,"Порог аварийно высокого напряжения на входе А2В2"]
[{"$nulls":3},"0x00DB",219,"Порог аварийно высокого напряжения на входе В2С2"]
[{"$nulls":3},"0x00DC",220,"Частота входного напряжения выпрямителя UZ1 (Гц) - Верхний порог аварии"]
[{"$nulls":3},"0x00DD",221,"Частота входного напряжения выпрямителя UZ2 (Гц) - Верхний порог аварии"]
[{"$nulls":3},"0x00DE",222,"Температура охладителя выпрямительной ячейки UZ1 ВК1 - Верхний порог аварии"]
[{"$nulls":3},"0x00DF",223,"Температура охладителя выпрямительной ячейки UZ1 ВК2 - Верхний порог аварии"]
[{"$nulls":3},"0x00E0",224,"Температура охладителя выпрямительной ячейки UZ2 ВК1 - Верхний порог аварии"]
[{"$nulls":3},"0x00E1",225,"Температура охладителя выпрямительной ячейки UZ2 ВК2 - Верхний порог аварии"]
[{"$nulls":3},"0x00E2",226,"Температура охладителя резисторного модуля UR1 ВК1 - Верхний порог аварии"]
[{"$nulls":3},"0x00E3",227,"Температура охладителя резисторного модуля UR1 ВК2 - Верхний порог аварии"]
[{"$nulls":3},"0x00E4",228,"Температура охладителя резисторного модуля UR2 ВК1 - Верхний порог аварии"]
[{"$nulls":3},"0x00E5",229,"Температура охладителя резисторного модуля UR2 ВК2 - Верхний порог аварии"]
[{"$nulls":3},"0x00E6",230,"Температура охладителя резисторного модуля UR3 ВК1 - Верхний порог аварии"]
[{"$nulls":3},"0x00E7",231,"Температура охладителя резисторного модуля UR3 ВК2 - Верхний порог аварии"]
[{"$nulls":3},"0x00E8",232,"Температура объёма Блок БВ ВК2 - Верхний порог аварии"]
[{"$nulls":3},"0x00E9",233,"Температура объёма Блок БВ ВК6 - Верхний порог аварии"]
[{"$nulls":3},"0x00EA",234,"Температура воды выпрямительной ячейки UZ1 BK11 - Верхний порог аварии"]
[{"$nulls":3},"0x00EB",235,"Температура воды выпрямительной ячейки UZ2 BK12 - Верхний порог аварии"]
[{"$nulls":3},"0x00EC",236,"Температура воды резисторного модуля UR1 BK17 - Верхний порог аварии"]
[{"$nulls":3},"0x00ED",237,"Температура воды резисторного модуля UR2 BK18 - Верхний порог аварии"]
[{"$nulls":3},"0x00EE",238,"Температура воды резисторного модуля UR3 BK19 - Верхний порог аварии"]
[null,null,"БК","0x00EF",239,"Напряжение звена постоянного тока (В) - Верхний порог аварии"]
[{"$nulls":3},"0x00F0",240,"Ток звена постоянного тока (+) (А) - Верхний порог аварии"]
[{"$nulls":3},"0x00F1",241,"Ток звена постоянного тока (-) (А) - Верхний порог аварии"]
[{"$nulls":3},"0x00F2",242,"Температура объёма БК ВК3 - Верхний порог аварии"]
[{"$nulls":3},"0x00F3",243,"Температура объёма БК ВК7 - Верхний порог аварии"]
[null,null,"БИ","0x00F4",244,"Ток ячейки чопперной UF1 (А) - Верхний порог аварии"]
[{"$nulls":3},"0x00F5",245,"Ток ячейки фазной AF1 (А) - Верхний порог аварии"]
[{"$nulls":3},"0x00F6",246,"Ток ячейки фазной AF2 (А) - Верхний порог аварии"]
[{"$nulls":3},"0x00F7",247,"Ток ячейки фазной AF3 (А) - Верхний порог аварии"]
[{"$nulls":3},"0x00F8",248,"Температура охладителя фазной ячейки AF1 ВК1 - Верхний порог аварии"]
[{"$nulls":3},"0x00F9",249,"Температура охладителя фазной ячейки AF1 ВК2 - Верхний порог аварии"]
[{"$nulls":3},"0x00FA",250,"Температура охладителя фазной ячейки AF1 ВК3 - Верхний порог аварии"]
[{"$nulls":3},"0x00FB",251,"Температура охладителя фазной ячейки AF1 ВК4 - Верхний порог аварии"]
[{"$nulls":3},"0x00FC",252,"Температура охладителя фазной ячейки AF1 ВК5 - Верхний порог аварии"]
[{"$nulls":3},"0x00FD",253,"Температура охладителя фазной ячейки AF1 ВК6 - Верхний порог аварии"]
[{"$nulls":3},"0x00FE",254,"Температура охладителя фазной ячейки AF1 ВК7 - Верхний порог аварии"]
[{"$nulls":3},"0x00FF",255,"Температура охладителя фазной ячейки AF1 ВК8 - Верхний порог аварии"]
[{"$nulls":3},"0x0100",256,"Температура охладителя фазной ячейки AF2 ВК1 - Верхний порог аварии"]
[{"$nulls":3},"0x0101",257,"Температура охладителя фазной ячейки AF2 ВК2 - Верхний порог аварии"]
[{"$nulls":3},"0x0102",258,"Температура охладителя фазной ячейки AF2 ВК3 - Верхний порог аварии"]
[{"$nulls":3},"0x0103",259,"Температура охладителя фазной ячейки AF2 ВК4 - Верхний порог аварии"]
[{"$nulls":3},"0x0104",260,"Температура охладителя фазной ячейки AF2 ВК5 - Верхний порог аварии"]
[{"$nulls":3},"0x0105",261,"Температура охладителя фазной ячейки AF2 ВК6 - Верхний порог аварии"]
[{"$nulls":3},"0x0106",262,"Температура охладителя фазной ячейки AF2 ВК7 - Верхний порог аварии"]
[{"$nulls":3},"0x0107",263,"Температура охладителя фазной ячейки AF2 ВК8 - Верхний порог аварии"]
[{"$nulls":3},"0x0108",264,"Температура охладителя фазной ячейки AF3 ВК1 - Верхний порог аварии"]
[{"$nulls":3},"0x0109",265,"Температура охладителя фазной ячейки AF3 ВК2 - Верхний порог аварии"]
[{"$nulls":3},"0x010A",266,"Температура охладителя фазной ячейки AF3 ВК3 - Верхний порог аварии"]
[{"$nulls":3},"0x010B",267,"Температура охладителя фазной ячейки AF3 ВК4 - Верхний порог аварии"]
[{"$nulls":3},"0x010C",268,"Температура охладителя фазной ячейки AF3 ВК5 - Верхний порог аварии"]
[{"$nulls":3},"0x010D",269,"Температура охладителя фазной ячейки AF3 ВК6 - Верхний порог аварии"]
[{"$nulls":3},"0x010E",270,"Температура охладителя фазной ячейки AF3 ВК7 - Верхний порог аварии"]
[{"$nulls":3},"0x010F",271,"Температура охладителя фазной ячейки AF3 ВК8 - Верхний порог аварии"]
[{"$nulls":3},"0x0110",272,"Температура охладителя чопперной ячейки UF1 ВК1 - Верхний порог аварии"]
[{"$nulls":3},"0x0111",273,"Температура охладителя чопперной ячейки UF1 ВК2 - Верхний порог аварии"]
[{"$nulls":3},"0x0112",274,"Температура охладителя чопперной ячейки UF1 ВК3 - Верхний порог аварии"]
[{"$nulls":3},"0x0113",275,"Температура охладителя чопперной ячейки UF1 ВК4 - Верхний порог аварии"]
[{"$nulls":3},"0x0114",276,"Температура объёма БИ ВК4 - Верхний порог аварии"]
[{"$nulls":3},"0x0115",277,"Температура объёма БИ ВК8 - Верхний порог аварии"]
[{"$nulls":3},"0x0116",278,"Температура воды чопперной ячейки UF1 ВК28 - Верхний порог аварии"]
[{"$nulls":3},"0x0117",279,"Температура воды фазной ячейки AF1 ВК13 - Верхний порог аварии"]
[{"$nulls":3},"0x0118",280,"Температура воды фазной ячейки AF2 ВК20 - Верхний порог аварии"]
[{"$nulls":3},"0x0119",281,"Температура воды фазной ячейки AF3 ВК24 - Верхний порог аварии"]
[null,null,"БВШ","0x011A",282,"Температура объёма БВШ ВК4 - Верхний порог аварии"]
[{"$nulls":3},"0x011B",283,"Температура объёма БВШ ВК8 - Верхний порог аварии"]
[null,null,"Система охлаждения","0x011C",284,"Давление на входе внутреннего контура PT1 (МПа) - Верхний порог аварии"]
[{"$nulls":3},"0x011D",285,"Давление на выходе внутреннего контура PT2 (МПа) - Верхний порог аварии"]
[{"$nulls":3},"0x011E",286,"Показания расходомера (м3/ч) - Верхний порог аварии"]
[{"$nulls":3},"0x011F",287,"Температуры воды \"Вход\" BK9  - Верхний порог аварии"]
[{"$nulls":3},"0x0120",288,"Температуры воды \"Выход\" BK10 - Верхний порог аварии"]
[null,"Передача значений уставок (Нижний порог предупреждения)","Блок БСУ","0x0121",289,"Температура объёма БСУ ВК1  - Нижний порог предупреждения"]
[{"$nulls":3},"0x0122",290,"Температура объёма БСУ ВК5  - Нижний порог предупреждения"]
[null,null,"Блок БВ","0x0123",291,"Порог предупреждения о низком напряжении на входе А1В1"]
[{"$nulls":3},"0x0124",292,"Порог предупреждения о низком напряжении на входе В1С1"]
[{"$nulls":3},"0x0125",293,"Порог предупреждения о низком напряжении на входе А2В2"]
[{"$nulls":3},"0x0126",294,"Порог предупреждения о низком напряжении на входе В2С2"]
[{"$nulls":3},"0x0127",295,"Частота входного напряжения выпрямителя UZ1 (Гц) - Нижний порог предупреждения"]
[{"$nulls":3},"0x0128",296,"Частота входного напряжения выпрямителя UZ2 (Гц) - Нижний порог предупреждения"]
[{"$nulls":3},"0x0129",297,"Температура охладителя выпрямительной ячейки UZ1 ВК1 - Нижний порог предупреждения"]
[{"$nulls":3},"0x012A",298,"Температура охладителя выпрямительной ячейки UZ1 ВК2 - Нижний порог предупреждения"]
[{"$nulls":3},"0x012B",299,"Температура охладителя выпрямительной ячейки UZ2 ВК1 - Нижний порог предупреждения"]
[{"$nulls":3},"0x012C",300,"Температура охладителя выпрямительной ячейки UZ2 ВК2 - Нижний порог предупреждения"]
[{"$nulls":3},"0x012D",301,"Температура охладителя резисторного модуля UR1 ВК1 - Нижний порог предупреждения"]
[{"$nulls":3},"0x012E",302,"Температура охладителя резисторного модуля UR1 ВК2 - Нижний порог предупреждения"]
[{"$nulls":3},"0x012F",303,"Температура охладителя резисторного модуля UR2 ВК1 - Нижний порог предупреждения"]
[{"$nulls":3},"0x0130",304,"Температура охладителя резисторного модуля UR2 ВК2 - Нижний порог предупреждения"]
[{"$nulls":3},"0x0131",305,"Температура охладителя резисторного модуля UR3 ВК1 - Нижний порог предупреждения"]
[{"$nulls":3},"0x0132",306,"Температура охладителя резисторного модуля UR3 ВК2 - Нижний порог предупреждения"]
[{"$nulls":3},"0x0133",307,"Температура объёма Блок БВ ВК2 - Нижний порог предупреждения"]
[{"$nulls":3},"0x0134",308,"Температура объёма Блок БВ ВК6 - Нижний порог предупреждения"]
[{"$nulls":3},"0x0135",309,"Температура воды выпрямительной ячейки UZ1 ВК11 - Нижний порог предупреждения"]
[{"$nulls":3},"0x0136",310,"Температура воды выпрямительной ячейки UZ2 ВК12 - Нижний порог предупреждения"]
[{"$nulls":3},"0x0137",311,"Температура воды резисторного модуля UR1 ВК17 - Нижний порог предупреждения"]
[{"$nulls":3},"0x0138",312,"Температура воды резисторного модуля UR2 ВК18 - Нижний порог предупреждения"]
[{"$nulls":3},"0x0139",313,"Температура воды резисторного модуля UR3 ВК19 - Нижний порог предупреждения"]
[null,null,"БК","0x013A",314,"Напряжение звена постоянного тока (В) - Нижний порог предупреждения"]
[{"$nulls":3},"0x013B",315,"Температура объёма БК ВК3 - Нижний порог предупреждения"]
[{"$nulls":3},"0x013C",316,"Температура объёма БК ВК7 - Нижний порог предупреждения"]
[null,null,"БИ","0x013D",317,"Температура охладителя фазной ячейки AF1 ВК1 - Нижний порог предупреждения"]
[{"$nulls":3},"0x013E",318,"Температура охладителя фазной ячейки AF1 ВК2 - Нижний порог предупреждения"]
[{"$nulls":3},"0x013F",319,"Температура охладителя фазной ячейки AF1 ВК3 - Нижний порог предупреждения"]
[{"$nulls":3},"0x0140",320,"Температура охладителя фазной ячейки AF1 ВК4 - Нижний порог предупреждения"]
[{"$nulls":3},"0x0141",321,"Температура охладителя фазной ячейки AF1 ВК5 - Нижний порог предупреждения"]
[{"$nulls":3},"0x0142",322,"Температура охладителя фазной ячейки AF1 ВК6 - Нижний порог предупреждения"]
[{"$nulls":3},"0x0143",323,"Температура охладителя фазной ячейки AF1 ВК7 - Нижний порог предупреждения"]
[{"$nulls":3},"0x0144",324,"Температура охладителя фазной ячейки AF1 ВК8 - Нижний порог предупреждения"]
[{"$nulls":3},"0x0145",325,"Температура охладителя фазной ячейки AF2 ВК1 - Нижний порог предупреждения"]
[{"$nulls":3},"0x0146",326,"Температура охладителя фазной ячейки AF2 ВК2 - Нижний порог предупреждения"]
[{"$nulls":3},"0x0147",327,"Температура охладителя фазной ячейки AF2 ВК3 - Нижний порог предупреждения"]
[{"$nulls":3},"0x0148",328,"Температура охладителя фазной ячейки AF2 ВК4 - Нижний порог предупреждения"]
[{"$nulls":3},"0x0149",329,"Температура охладителя фазной ячейки AF2 ВК5 - Нижний порог предупреждения"]
[{"$nulls":3},"0x014A",330,"Температура охладителя фазной ячейки AF2 ВК6 - Нижний порог предупреждения"]
[{"$nulls":3},"0x014B",331,"Температура охладителя фазной ячейки AF2 ВК7 - Нижний порог предупреждения"]
[{"$nulls":3},"0x014C",332,"Температура охладителя фазной ячейки AF2 ВК8 - Нижний порог предупреждения"]
[{"$nulls":3},"0x014D",333,"Температура охладителя фазной ячейки AF3 ВК1 - Нижний порог предупреждения"]
[{"$nulls":3},"0x014E",334,"Температура охладителя фазной ячейки AF3 ВК2 - Нижний порог предупреждения"]
[{"$nulls":3},"0x014F",335,"Температура охладителя фазной ячейки AF3 ВК3 - Нижний порог предупреждения"]
[{"$nulls":3},"0x0150",336,"Температура охладителя фазной ячейки AF3 ВК4 - Нижний порог предупреждения"]
[{"$nulls":3},"0x0151",337,"Температура охладителя фазной ячейки AF3 ВК5 - Нижний порог предупреждения"]
[{"$nulls":3},"0x0152",338,"Температура охладителя фазной ячейки AF3 ВК6 - Нижний порог предупреждения"]
[{"$nulls":3},"0x0153",339,"Температура охладителя фазной ячейки AF3 ВК7 - Нижний порог предупреждения"]
[{"$nulls":3},"0x0154",340,"Температура охладителя фазной ячейки AF3 ВК8 - Нижний порог предупреждения"]
[{"$nulls":3},"0x0155",341,"Температура охладителя чопперной ячейки UF1 ВК1 - Нижний порог предупреждения"]
[{"$nulls":3},"0x0156",342,"Температура охладителя чопперной ячейки UF1 ВК2 - Нижний порог предупреждения"]
[{"$nulls":3},"0x0157",343,"Температура охладителя чопперной ячейки UF1 ВК3 - Нижний порог предупреждения"]
[{"$nulls":3},"0x0158",344,"Температура охладителя чопперной ячейки UF1 ВК4 - Нижний порог предупреждения"]
[{"$nulls":3},"0x0159",345,"Температура объёма БИ ВК4 - Нижний порог предупреждения"]
[{"$nulls":3},"0x015A",346,"Температура объёма БИ ВК8 - Нижний порог предупреждения"]
[{"$nulls":3},"0x015B",347,"Температура воды чопперной ячейки UF1 ВК28 - Нижний порог предупреждения"]
[{"$nulls":3},"0x015C",348,"Температура воды фазной ячейки AF1 ВК13 - Нижний порог предупреждения"]
[{"$nulls":3},"0x015D",349,"Температура воды фазной ячейки AF2 ВК20 - Нижний порог предупреждения"]
[{"$nulls":3},"0x015E",350,"Температура воды фазной ячейки AF3 ВК24 - Нижний порог предупреждения"]
[null,null,"БВШ","0x015F",351,"Температура объёма БВШ ВК4 - Нижний порог предупреждения"]
[{"$nulls":3},"0x0160",352,"Температура объёма БВШ ВК8 - Нижний порог предупреждения"]
[null,null,"Система охлаждения","0x0161",353,"Давление на входе внутреннего контура PT1 (МПа) - Нижний порог предупреждения"]
[{"$nulls":3},"0x0162",354,"Давление на выходе внутреннего контура PT2 (МПа) - Нижний порог предупреждения"]
[{"$nulls":3},"0x0163",355,"Показания расходомера (м3/ч) - Нижний порог предупреждения"]
[{"$nulls":3},"0x0164",356,"Температуры воды \"Вход\" BK9  - Нижний порог предупреждения"]
[{"$nulls":3},"0x0165",357,"Температуры воды \"Выход\" BK10 - Нижний порог предупреждения"]
[null,"Передача значений уставок (Нижний порог аварии)","Блок БСУ","0x0166",358,"Температура объёма БСУ ВК1  - Нижний порог аварии"]
[{"$nulls":3},"0x0167",359,"Температура объёма БСУ ВК5  - Нижний порог аварии"]
[null,null,"Блок БВ","0x0168",360,"Порог аварийно низкого напряжения на входе А1В1"]
[{"$nulls":3},"0x0169",361,"Порог аварийно низкого напряжения на входе В1С1"]
[{"$nulls":3},"0x016A",362,"Порог аварийно низкого напряжения на входе А2В2"]
[{"$nulls":3},"0x016B",363,"Порог аварийно низкого напряжения на входе В2С2"]
[{"$nulls":3},"0x016C",364,"Частота входного напряжения выпрямителя UZ1 (Гц) - Нижний порог аварии"]
[{"$nulls":3},"0x016D",365,"Частота входного напряжения выпрямителя UZ2 (Гц) - Нижний порог аварии"]
[{"$nulls":3},"0x016E",366,"Температура охладителя выпрямительной ячейки UZ1 ВК1 - Нижний порог аварии"]
[{"$nulls":3},"0x016F",367,"Температура охладителя выпрямительной ячейки UZ1 ВК2 - Нижний порог аварии"]
[{"$nulls":3},"0x0170",368,"Температура охладителя выпрямительной ячейки UZ2 ВК1 - Нижний порог аварии"]
[{"$nulls":3},"0x0171",369,"Температура охладителя выпрямительной ячейки UZ2 ВК2 - Нижний порог аварии"]
[{"$nulls":3},"0x0172",370,"Температура охладителя резисторного модуля UR1 ВК1 - Нижний порог аварии"]
[{"$nulls":3},"0x0173",371,"Температура охладителя резисторного модуля UR1 ВК2 - Нижний порог аварии"]
[{"$nulls":3},"0x0174",372,"Температура охладителя резисторного модуля UR2 ВК1 - Нижний порог аварии"]
[{"$nulls":3},"0x0175",373,"Температура охладителя резисторного модуля UR2 ВК2 - Нижний порог аварии"]
[{"$nulls":3},"0x0176",374,"Температура охладителя резисторного модуля UR3 ВК1 - Нижний порог аварии"]
[{"$nulls":3},"0x0177",375,"Температура охладителя резисторного модуля UR3 ВК2 - Нижний порог аварии"]
[{"$nulls":3},"0x0178",376,"Температура объёма Блок БВ ВК2 - Нижний порог аварии"]
[{"$nulls":3},"0x0179",377,"Температура объёма Блок БВ ВК6 - Нижний порог аварии"]
[{"$nulls":3},"0x017A",378,"Температура воды выпрямительной ячейки UZ1 ВК11 - Нижний порог аварии"]
[{"$nulls":3},"0x017B",379,"Температура воды выпрямительной ячейки UZ2 ВК12 - Нижний порог аварии"]
[{"$nulls":3},"0x017C",380,"Температура воды резисторного модуля UR1 ВК17 - Нижний порог аварии"]
[{"$nulls":3},"0x017D",381,"Температура воды резисторного модуля UR2 ВК18 - Нижний порог аварии"]
[{"$nulls":3},"0x017E",382,"Температура воды резисторного модуля UR3 ВК19 - Нижний порог аварии"]
[null,null,"БК","0x017F",383,"Напряжение звена постоянного тока (В) - Нижний порог аварии"]
[{"$nulls":3},"0x0180",384,"Температура объёма БК ВК3 - Нижний порог аварии"]
[{"$nulls":3},"0x0181",385,"Температура объёма БК ВК7 - Нижний порог аварии"]
[null,null,"БИ","0x0182",386,"Температура охладителя фазной ячейки AF1 ВК1 - Нижний порог аварии"]
[{"$nulls":3},"0x0183",387,"Температура охладителя фазной ячейки AF1 ВК2 - Нижний порог аварии"]
[{"$nulls":3},"0x0184",388,"Температура охладителя фазной ячейки AF1 ВК3 - Нижний порог аварии"]
[{"$nulls":3},"0x0185",389,"Температура охладителя фазной ячейки AF1 ВК4 - Нижний порог аварии"]
[{"$nulls":3},"0x0186",390,"Температура охладителя фазной ячейки AF1 ВК5 - Нижний порог аварии"]
[{"$nulls":3},"0x0187",391,"Температура охладителя фазной ячейки AF1 ВК6 - Нижний порог аварии"]
[{"$nulls":3},"0x0188",392,"Температура охладителя фазной ячейки AF1 ВК7 - Нижний порог аварии"]
[{"$nulls":3},"0x0189",393,"Температура охладителя фазной ячейки AF1 ВК8 - Нижний порог аварии"]
[{"$nulls":3},"0x018A",394,"Температура охладителя фазной ячейки AF2 ВК1 - Нижний порог аварии"]
[{"$nulls":3},"0x018B",395,"Температура охладителя фазной ячейки AF2 ВК2 - Нижний порог аварии"]
[{"$nulls":3},"0x018C",396,"Температура охладителя фазной ячейки AF2 ВК3 - Нижний порог аварии"]
[{"$nulls":3},"0x018D",397,"Температура охладителя фазной ячейки AF2 ВК4 - Нижний порог аварии"]
[{"$nulls":3},"0x018E",398,"Температура охладителя фазной ячейки AF2 ВК5 - Нижний порог аварии"]
[{"$nulls":3},"0x018F",399,"Температура охладителя фазной ячейки AF2 ВК6 - Нижний порог аварии"]
[{"$nulls":3},"0x0190",400,"Температура охладителя фазной ячейки AF2 ВК7 - Нижний порог аварии"]
[{"$nulls":3},"0x0191",401,"Температура охладителя фазной ячейки AF2 ВК8 - Нижний порог аварии"]
[{"$nulls":3},"0x0192",402,"Температура охладителя фазной ячейки AF3 ВК1 - Нижний порог аварии"]
[{"$nulls":3},"0x0193",403,"Температура охладителя фазной ячейки AF3 ВК2 - Нижний порог аварии"]
[{"$nulls":3},"0x0194",404,"Температура охладителя фазной ячейки AF3 ВК3 - Нижний порог аварии"]
[{"$nulls":3},"0x0195",405,"Температура охладителя фазной ячейки AF3 ВК4 - Нижний порог аварии"]
[{"$nulls":3},"0x0196",406,"Температура охладителя фазной ячейки AF3 ВК5 - Нижний порог аварии"]
[{"$nulls":3},"0x0197",407,"Температура охладителя фазной ячейки AF3 ВК6 - Нижний порог аварии"]
[{"$nulls":3},"0x0198",408,"Температура охладителя фазной ячейки AF3 ВК7 - Нижний порог аварии"]
[{"$nulls":3},"0x0199",409,"Температура охладителя фазной ячейки AF3 ВК8 - Нижний порог аварии"]
[{"$nulls":3},"0x019A",410,"Температура охладителя чопперной ячейки UF1 ВК1 - Нижний порог аварии"]
[{"$nulls":3},"0x019B",411,"Температура охладителя чопперной ячейки UF1 ВК2 - Нижний порог аварии"]
[{"$nulls":3},"0x019C",412,"Температура охладителя чопперной ячейки UF1 ВК3 - Нижний порог аварии"]
[{"$nulls":3},"0x019D",413,"Температура охладителя чопперной ячейки UF1 ВК4 - Нижний порог аварии"]
[{"$nulls":3},"0x019E",414,"Температура объёма БИ ВК4 - Нижний порог аварии"]
[{"$nulls":3},"0x019F",415,"Температура объёма БИ ВК8 - Нижний порог аварии"]
[{"$nulls":3},"0x01A0",416,"Температура воды чопперной ячейки UF1 ВК28 - Нижний порог аварии"]
[{"$nulls":3},"0x01A1",417,"Температура воды фазной ячейки AF1 ВК13 - Нижний порог аварии"]
[{"$nulls":3},"0x01A2",418,"Температура воды фазной ячейки AF2 ВК20 - Нижний порог аварии"]
[{"$nulls":3},"0x01A3",419,"Температура воды фазной ячейки AF3 ВК24 - Нижний порог аварии"]
[null,null,"БВШ","0x01A4",420,"Температура объёма БВШ ВК4 - Нижний порог аварии"]
[{"$nulls":3},"0x01A5",421,"Температура объёма БВШ ВК8 - Нижний порог аварии"]
[null,null,"Система охлаждения","0x01A6",422,"Давление на входе внутреннего контура PT1 (МПа) - Нижний порог аварии"]
[{"$nulls":3},"0x01A7",423,"Давление на выходе внутреннего контура PT2 (МПа) - Нижний порог аварии"]
[{"$nulls":3},"0x01A8",424,"Показания расходомера (м3/ч) - Нижний порог аварии"]
[{"$nulls":3},"0x01A9",425,"Температуры воды \"Вход\" BK9  - Нижний порог аварии"]
[{"$nulls":3},"0x01AA",426,"Температуры воды \"Выход\" BK10 - Нижний порог аварии"]
[null,"Данные датчиков","БСУ","0x01AB",427,"Температура объёма БСУ ВК1","0 - 15","User Bytes"]
[{"$nulls":3},"0x01AC",428,null,"16 - 64","ID"]
[{"$nulls":3},"0x01AD",429]
[{"$nulls":3},"0x01AE",430]
[{"$nulls":3},"0x01AF",431,"Температура объёма БСУ ВК5","0 - 15","User Bytes"]
[{"$nulls":3},"0x01B0",432,null,"16 - 64","ID"]
[{"$nulls":3},"0x01B1",433]
[{"$nulls":3},"0x01B2",434]
[null,null,"Блок БВ","0x01B3",435,"Температура охладителя выпрямительной ячейки UZ1 ВК1","0 - 15","User Bytes"]
[{"$nulls":3},"0x01B4",436,null,"16 - 64","ID"]
[{"$nulls":3},"0x01B5",437]
[{"$nulls":3},"0x01B6",438]
[{"$nulls":3},"0x01B7",439,"Температура охладителя выпрямительной ячейки UZ1 ВК2","0 - 15","User Bytes"]
[{"$nulls":3},"0x01B8",440,null,"16 - 64","ID"]
[{"$nulls":3},"0x01B9",441]
[{"$nulls":3},"0x01BA",442]
[{"$nulls":3},"0x01BB",443,"Температура охладителя выпрямительной ячейки UZ2 ВК1","0 - 15","User Bytes"]
[{"$nulls":3},"0x01BC",444,null,"16 - 64","ID"]
[{"$nulls":3},"0x01BD",445]
[{"$nulls":3},"0x01BE",446]
[{"$nulls":3},"0x01BF",447,"Температура охладителя выпрямительной ячейки UZ2 ВК2","0 - 15","User Bytes"]
[{"$nulls":3},"0x01C0",448,null,"16 - 64","ID"]
[{"$nulls":3},"0x01C1",449]
[{"$nulls":3},"0x01C2",450]
[{"$nulls":3},"0x01C3",451,"Температура охладителя резисторного модуля UR1 ВК1","0 - 15","User Bytes"]
[{"$nulls":3},"0x01C4",452,null,"16 - 64","ID"]
[{"$nulls":3},"0x01C5",453]
[{"$nulls":3},"0x01C6",454]
[{"$nulls":3},"0x01C7",455,"Температура охладителя резисторного модуля UR1 ВК2","0 - 15","User Bytes"]
[{"$nulls":3},"0x01C8",456,null,"16 - 64","ID"]
[{"$nulls":3},"0x01C9",457]
[{"$nulls":3},"0x01CA",458]
[{"$nulls":3},"0x01CB",459,"Температура охладителя резисторного модуля UR2 ВК1","0 - 15","User Bytes"]
[{"$nulls":3},"0x01CC",460,null,"16 - 64","ID"]
[{"$nulls":3},"0x01CD",461]
[{"$nulls":3},"0x01CE",462]
[{"$nulls":3},"0x01CF",463,"Температура охладителя резисторного модуля UR2 ВК2","0 - 15","User Bytes"]
[{"$nulls":3},"0x01D0",464,null,"16 - 64","ID"]
[{"$nulls":3},"0x01D1",465]
[{"$nulls":3},"0x01D2",466]
[{"$nulls":3},"0x01D3",467,"Температура охладителя резисторного модуля UR3 ВК1","0 - 15","User Bytes"]
[{"$nulls":3},"0x01D4",468,null,"16 - 64","ID"]
[{"$nulls":3},"0x01D5",469]
[{"$nulls":3},"0x01D6",470]
[{"$nulls":3},"0x01D7",471,"Температура охладителя резисторного модуля UR3 ВК2","0 - 15","User Bytes"]
[{"$nulls":3},"0x01D8",472,null,"16 - 64","ID"]
[{"$nulls":3},"0x01D9",473]
[{"$nulls":3},"0x01DA",474]
[{"$nulls":3},"0x01DB",475,"Температура объёма Блок БВ ВК2","0 - 15","User Bytes"]
[{"$nulls":3},"0x01DC",476,null,"16 - 64","ID"]
[{"$nulls":3},"0x01DD",477]
[{"$nulls":3},"0x01DE",478]
[{"$nulls":3},"0x01DF",479,"Температура объёма Блок БВ ВК6","0 - 15","User Bytes"]
[{"$nulls":3},"0x01E0",480,null,"16 - 64","ID"]
[{"$nulls":3},"0x01E1",481]
[{"$nulls":3},"0x01E2",482]
[null,null,"БК","0x01E3",483,"Температура объёма БК ВК3","0 - 15","User Bytes"]
[{"$nulls":3},"0x01E4",484,null,"16 - 64","ID"]
[{"$nulls":3},"0x01E5",485]
[{"$nulls":3},"0x01E6",486]
[{"$nulls":3},"0x01E7",487,"Температура объёма БК ВК7","0 - 15","User Bytes"]
[{"$nulls":3},"0x01E8",488,null,"16 - 64","ID"]
[{"$nulls":3},"0x01E9",489]
[{"$nulls":3},"0x01EA",490]
[null,null,"БИ","0x01EB",491,"Температура охладителя фазной ячейки AF1 ВК1","0 - 15","User Bytes"]
[{"$nulls":3},"0x01EC",492,null,"16 - 64","ID"]
[{"$nulls":3},"0x01ED",493]
[{"$nulls":3},"0x01EE",494]
[{"$nulls":3},"0x01EF",495,"Температура охладителя фазной ячейки AF1 ВК2","0 - 15","User Bytes"]
[{"$nulls":3},"0x01F0",496,null,"16 - 64","ID"]
[{"$nulls":3},"0x01F1",497]
[{"$nulls":3},"0x01F2",498]
[{"$nulls":3},"0x01F3",499,"Температура охладителя фазной ячейки AF1 ВК3","0 - 15","User Bytes"]
[{"$nulls":3},"0x01F4",500,null,"16 - 64","ID"]
[{"$nulls":3},"0x01F5",501]
[{"$nulls":3},"0x01F6",502]
[{"$nulls":3},"0x01F7",503,"Температура охладителя фазной ячейки AF1 ВК4","0 - 15","User Bytes"]
[{"$nulls":3},"0x01F8",504,null,"16 - 64","ID"]
[{"$nulls":3},"0x01F9",505]
[{"$nulls":3},"0x01FA",506]
[{"$nulls":3},"0x01FB",507,"Температура охладителя фазной ячейки AF1 ВК5","0 - 15","User Bytes"]
[{"$nulls":3},"0x01FC",508,null,"16 - 64","ID"]
[{"$nulls":3},"0x01FD",509]
[{"$nulls":3},"0x01FE",510]
[{"$nulls":3},"0x01FF",511,"Температура охладителя фазной ячейки AF1 ВК6","0 - 15","User Bytes"]
[{"$nulls":3},"0x0200",512,null,"16 - 64","ID"]
[{"$nulls":3},"0x0201",513]
[{"$nulls":3},"0x0202",514]
[{"$nulls":3},"0x0203",515,"Температура охладителя фазной ячейки AF1 ВК7","0 - 15","User Bytes"]
[{"$nulls":3},"0x0204",516,null,"16 - 64","ID"]
[{"$nulls":3},"0x0205",517]
[{"$nulls":3},"0x0206",518]
[{"$nulls":3},"0x0207",519,"Температура охладителя фазной ячейки AF1 ВК8","0 - 15","User Bytes"]
[{"$nulls":3},"0x0208",520,null,"16 - 64","ID"]
[{"$nulls":3},"0x0209",521]
[{"$nulls":3},"0x020A",522]
[{"$nulls":3},"0x020B",523,"Температура охладителя фазной ячейки AF2 ВК1","0 - 15","User Bytes"]
[{"$nulls":3},"0x020C",524,null,"16 - 64","ID"]
[{"$nulls":3},"0x020D",525]
[{"$nulls":3},"0x020E",526]
[{"$nulls":3},"0x020F",527,"Температура охладителя фазной ячейки AF2 ВК2","0 - 15","User Bytes"]
[{"$nulls":3},"0x0210",528,null,"16 - 64","ID"]
[{"$nulls":3},"0x0211",529]
[{"$nulls":3},"0x0212",530]
[{"$nulls":3},"0x0213",531,"Температура охладителя фазной ячейки AF2 ВК3","0 - 15","User Bytes"]
[{"$nulls":3},"0x0214",532,null,"16 - 64","ID"]
[{"$nulls":3},"0x0215",533]
[{"$nulls":3},"0x0216",534]
[{"$nulls":3},"0x0217",535,"Температура охладителя фазной ячейки AF2 ВК4","0 - 15","User Bytes"]
[{"$nulls":3},"0x0218",536,null,"16 - 64","ID"]
[{"$nulls":3},"0x0219",537]
[{"$nulls":3},"0x021A",538]
[{"$nulls":3},"0x021B",539,"Температура охладителя фазной ячейки AF2 ВК5","0 - 15","User Bytes"]
[{"$nulls":3},"0x021C",540,null,"16 - 64","ID"]
[{"$nulls":3},"0x021D",541]
[{"$nulls":3},"0x021E",542]
[{"$nulls":3},"0x021F",543,"Температура охладителя фазной ячейки AF2 ВК6","0 - 15","User Bytes"]
[{"$nulls":3},"0x0220",544,null,"16 - 64","ID"]
[{"$nulls":3},"0x0221",545]
[{"$nulls":3},"0x0222",546]
[{"$nulls":3},"0x0223",547,"Температура охладителя фазной ячейки AF2 ВК7","0 - 15","User Bytes"]
[{"$nulls":3},"0x0224",548,null,"16 - 64","ID"]
[{"$nulls":3},"0x0225",549]
[{"$nulls":3},"0x0226",550]
[{"$nulls":3},"0x0227",551,"Температура охладителя фазной ячейки AF2 ВК8","0 - 15","User Bytes"]
[{"$nulls":3},"0x0228",552,null,"16 - 64","ID"]
[{"$nulls":3},"0x0229",553]
[{"$nulls":3},"0x022A",554]
[{"$nulls":3},"0x022B",555,"Температура охладителя фазной ячейки AF3 ВК1","0 - 15","User Bytes"]
[{"$nulls":3},"0x022C",556,null,"16 - 64","ID"]
[{"$nulls":3},"0x022D",557]
[{"$nulls":3},"0x022E",558]
[{"$nulls":3},"0x022F",559,"Температура охладителя фазной ячейки AF3 ВК2","0 - 15","User Bytes"]
[{"$nulls":3},"0x0230",560,null,"16 - 64","ID"]
[{"$nulls":3},"0x0231",561]
[{"$nulls":3},"0x0232",562]
[{"$nulls":3},"0x0233",563,"Температура охладителя фазной ячейки AF3 ВК3","0 - 15","User Bytes"]
[{"$nulls":3},"0x0234",564,null,"16 - 64","ID"]
[{"$nulls":3},"0x0235",565]
[{"$nulls":3},"0x0236",566]
[{"$nulls":3},"0x0237",567,"Температура охладителя фазной ячейки AF3 ВК4","0 - 15","User Bytes"]
[{"$nulls":3},"0x0238",568,null,"16 - 64","ID"]
[{"$nulls":3},"0x0239",569]
[{"$nulls":3},"0x023A",570]
[{"$nulls":3},"0x023B",571,"Температура охладителя фазной ячейки AF3 ВК5","0 - 15","User Bytes"]
[{"$nulls":3},"0x023C",572,null,"16 - 64","ID"]
[{"$nulls":3},"0x023D",573]
[{"$nulls":3},"0x023E",574]
[{"$nulls":3},"0x023F",575,"Температура охладителя фазной ячейки AF3 ВК6","0 - 15","User Bytes"]
[{"$nulls":3},"0x0240",576,null,"16 - 64","ID"]
[{"$nulls":3},"0x0241",577]
[{"$nulls":3},"0x0242",578]
[{"$nulls":3},"0x0243",579,"Температура охладителя фазной ячейки AF3 ВК7","0 - 15","User Bytes"]
[{"$nulls":3},"0x0244",580,null,"16 - 64","ID"]
[{"$nulls":3},"0x0245",581]
[{"$nulls":3},"0x0246",582]
[{"$nulls":3},"0x0247",583,"Температура охладителя фазной ячейки AF3 ВК8","0 - 15","User Bytes"]
[{"$nulls":3},"0x0248",584,null,"16 - 64","ID"]
[{"$nulls":3},"0x0249",585]
[{"$nulls":3},"0x024A",586]
[{"$nulls":3},"0x024B",587,"Температура охладителя чопперной ячейки UF1 ВК1","0 - 15","User Bytes"]
[{"$nulls":3},"0x024C",588,null,"16 - 64","ID"]
[{"$nulls":3},"0x024D",589]
[{"$nulls":3},"0x024E",590]
[{"$nulls":3},"0x024F",591,"Температура охладителя чопперной ячейки UF1 ВК2","0 - 15","User Bytes"]
[{"$nulls":3},"0x0250",592,null,"16 - 64","ID"]
[{"$nulls":3},"0x0251",593]
[{"$nulls":3},"0x0252",594]
[{"$nulls":3},"0x0253",595,"Температура охладителя чопперной ячейки UF1 ВК3","0 - 15","User Bytes"]
[{"$nulls":3},"0x0254",596,null,"16 - 64","ID"]
[{"$nulls":3},"0x0255",597]
[{"$nulls":3},"0x0256",598]
[{"$nulls":3},"0x0257",599,"Температура охладителя чопперной ячейки UF1 ВК4","0 - 15","User Bytes"]
[{"$nulls":3},"0x0258",600,null,"16 - 64","ID"]
[{"$nulls":3},"0x0259",601]
[{"$nulls":3},"0x025A",602]
[{"$nulls":3},"0x025B",603,"Температура объёма БИ ВК4","0 - 15","User Bytes"]
[{"$nulls":3},"0x025C",604,null,"16 - 64","ID"]
[{"$nulls":3},"0x025D",605]
[{"$nulls":3},"0x025E",606]
[{"$nulls":3},"0x025F",607,"Температура объёма БИ ВК8","0 - 15","User Bytes"]
[{"$nulls":3},"0x0260",608,null,"16 - 64","ID"]
[{"$nulls":3},"0x0261",609]
[{"$nulls":3},"0x0262",610]
[null,null,"БВШ","0x0263",611,"Температура объёма БВШ ВК4","0 - 15","User Bytes"]
[{"$nulls":3},"0x0264",612,null,"16 - 64","ID"]
[{"$nulls":3},"0x0265",613]
[{"$nulls":3},"0x0266",614]
[{"$nulls":3},"0x0267",615,"Температура объёма БВШ ВК8","0 - 15","User Bytes"]
[{"$nulls":3},"0x0268",616,null,"16 - 64","ID"]
[{"$nulls":3},"0x0269",617]
[{"$nulls":3},"0x026A",618]
["Приём"]
[null,"Приём","Команды",{"$f":"\"0x\"&DEC2HEX(E1102, 4)","v":"0x1388"},5000,"Код протокола CAN (Обычный, расширенный, суперрасширенный)"]
[{"$nulls":3},"0x1389",5001,"Сохранить уставки"]
[{"$nulls":3},"0x138A",5002,"Сброс ошибок (квитирование)"]
[{"$nulls":3},"0x138B",5003,"Команда запроса ID"]
[{"$nulls":3},"0x138C",5004,"Команда запроса User Bytes"]
[{"$nulls":3},"0x138D",5005,"Команда запроса уставок"]
[{"$nulls":3},"0x138E",5006,"Счётчик запросов основных данных"]
[{"$nulls":3},"0x138F",5007,"Счётчик запросов уставок"]
[{"$nulls":3},"0x1390",5008,"Счётчик запросов данных датчиков"]
[{"$nulls":3},"0x1391",5009,"Команда для устройства",0,"Блокировка"]
[{"$nulls":6},1,"Собрать силовую схему"]
[{"$nulls":6},2,"Разобрать силовую схему"]
[{"$nulls":6},3,"Схема собрана в режиме аварийного хода"]
[{"$nulls":6},4,"Установить управление по мощности"]
[{"$nulls":6},5,"Установить управление по оборотам"]
[{"$nulls":6},6,"Установить режим устройства \"конфигурация\" (меню настроек)"]
[{"$nulls":6},7,"Установить режим устройства \"эксплуатация\""]
[{"$nulls":6},8,"Запросить все предупредительные уставки"]
[{"$nulls":6},9,"Запросить все аварийные уставки"]
[{"$nulls":6},10]
[{"$nulls":6},11]
[{"$nulls":6},12]
[{"$nulls":6},13]
[{"$nulls":6},14]
[{"$nulls":6},15,"Сохранить настройки"]
[null,"Приём значений уставок (Верхний порог предупреждения)","Осн. данные",{"$f":"\"0x\"&DEC2HEX(E1127, 4)","v":"0x1392"},5010,"Порог предупреждения о высоком токе на выходе фазы U"]
[{"$nulls":3},"0x1393",5011,"Порог предупреждения о высоком токе на выходе фазы V"]
[{"$nulls":3},"0x1394",5012,"Порог предупреждения о высоком токе на выходе фазы W"]
[null,null,"Блок БСУ","0x1395",5013,"УКСИ - Предупредительная уставка"]
[{"$nulls":3},"0x1396",5014,"Температура объёма БСУ ВК1 - Верхний порог предупреждения"]
[{"$nulls":3},"0x1397",5015,"Температура объёма БСУ ВК5 - Верхний порог предупреждения"]
[null,null,"Блок БВ","0x1398",5016,"Порог предупреждения о высоком напряжении на входе А1В1"]
[{"$nulls":3},"0x1399",5017,"Порог предупреждения о высоком напряжении на входе В1С1"]
[{"$nulls":3},"0x139A",5018,"Порог предупреждения о высоком напряжении на входе А2В2"]
[{"$nulls":3},"0x139B",5019,"Порог предупреждения о высоком напряжении на входе В2С2"]
[{"$nulls":3},"0x139C",5020,"Частота входного напряжения выпрямителя UZ1 (Гц) - Верхний порог предупреждения"]
[{"$nulls":3},"0x139D",5021,"Частота входного напряжения выпрямителя UZ2 (Гц) - Верхний порог предупреждения"]
[{"$nulls":3},"0x139E",5022,"Температура охладителя выпрямительной ячейки UZ1 ВК1 - Верхний порог предупреждения"]
[{"$nulls":3},"0x139F",5023,"Температура охладителя выпрямительной ячейки UZ1 ВК2 - Верхний порог предупреждения"]
[{"$nulls":3},"0x13A0",5024,"Температура охладителя выпрямительной ячейки UZ2 ВК1 - Верхний порог предупреждения"]
[{"$nulls":3},"0x13A1",5025,"Температура охладителя выпрямительной ячейки UZ2 ВК2 - Верхний порог предупреждения"]
[{"$nulls":3},"0x13A2",5026,"Температура охладителя резисторного модуля UR1 ВК1 - Верхний порог предупреждения"]
[{"$nulls":3},"0x13A3",5027,"Температура охладителя резисторного модуля UR1 ВК2 - Верхний порог предупреждения"]
[{"$nulls":3},"0x13A4",5028,"Температура охладителя резисторного модуля UR2 ВК1 - Верхний порог предупреждения"]
[{"$nulls":3},"0x13A5",5029,"Температура охладителя резисторного модуля UR2 ВК2 - Верхний порог предупреждения"]
[{"$nulls":3},"0x13A6",5030,"Температура охладителя резисторного модуля UR3 ВК1 - Верхний порог предупреждения"]
[{"$nulls":3},"0x13A7",5031,"Температура охладителя резисторного модуля UR3 ВК2 - Верхний порог предупреждения"]
[{"$nulls":3},"0x13A8",5032,"Температура объёма Блок БВ ВК2 - Верхний порог предупреждения"]
[{"$nulls":3},"0x13A9",5033,"Температура объёма Блок БВ ВК6 - Верхний порог предупреждения"]
[{"$nulls":3},"0x13AA",5034,"Температура воды выпрямительной ячейки UZ1 ВК11 - Верхний порог предупреждения"]
[{"$nulls":3},"0x13AB",5035,"Температура воды выпрямительной ячейки UZ2 ВК12 - Верхний порог предупреждения"]
[{"$nulls":3},"0x13AC",5036,"Температура воды резисторного модуля UR1 ВК17 - Верхний порог предупреждения"]
[{"$nulls":3},"0x13AD",5037,"Температура воды резисторного модуля UR2 ВК18 - Верхний порог предупреждения"]
[{"$nulls":3},"0x13AE",5038,"Температура воды резисторного модуля UR3 ВК19 - Верхний порог предупреждения"]
[null,null,"БК","0x13AF",5039,"Напряжение звена постоянного тока (В) - Верхний порог предупреждения"]
[{"$nulls":3},"0x13B0",5040,"Ток звена постоянного тока (+) (А) - Верхний порог предупреждения"]
[{"$nulls":3},"0x13B1",5041,"Ток звена постоянного тока (-) (А) - Верхний порог предупреждения"]
[{"$nulls":3},"0x13B2",5042,"Температура объёма БК ВК3 - Верхний порог предупреждения"]
[{"$nulls":3},"0x13B3",5043,"Температура объёма БК ВК7 - Верхний порог предупреждения"]
[null,null,"БИ","0x13B4",5044,"Ток ячейки чопперной UF1 (А) - Верхний порог предупреждения"]
[{"$nulls":3},"0x13B5",5045,"Ток ячейки фазной AF1 (А) - Верхний порог предупреждения"]
[{"$nulls":3},"0x13B6",5046,"Ток ячейки фазной AF2 (А) - Верхний порог предупреждения"]
[{"$nulls":3},"0x13B7",5047,"Ток ячейки фазной AF3 (А) - Верхний порог предупреждения"]
[{"$nulls":3},"0x13B8",5048,"Температура охладителя фазной ячейки AF1 ВК1 - Верхний порог предупреждения"]
[{"$nulls":3},"0x13B9",5049,"Температура охладителя фазной ячейки AF1 ВК2 - Верхний порог предупреждения"]
[{"$nulls":3},"0x13BA",5050,"Температура охладителя фазной ячейки AF1 ВК3 - Верхний порог предупреждения"]
[{"$nulls":3},"0x13BB",5051,"Температура охладителя фазной ячейки AF1 ВК4 - Верхний порог предупреждения"]
[{"$nulls":3},"0x13BC",5052,"Температура охладителя фазной ячейки AF1 ВК5 - Верхний порог предупреждения"]
[{"$nulls":3},"0x13BD",5053,"Температура охладителя фазной ячейки AF1 ВК6 - Верхний порог предупреждения"]
[{"$nulls":3},"0x13BE",5054,"Температура охладителя фазной ячейки AF1 ВК7 - Верхний порог предупреждения"]
[{"$nulls":3},"0x13BF",5055,"Температура охладителя фазной ячейки AF1 ВК8 - Верхний порог предупреждения"]
[{"$nulls":3},"0x13C0",5056,"Температура охладителя фазной ячейки AF2 ВК1 - Верхний порог предупреждения"]
[{"$nulls":3},"0x13C1",5057,"Температура охладителя фазной ячейки AF2 ВК2 - Верхний порог предупреждения"]
[{"$nulls":3},"0x13C2",5058,"Температура охладителя фазной ячейки AF2 ВК3 - Верхний порог предупреждения"]
[{"$nulls":3},"0x13C3",5059,"Температура охладителя фазной ячейки AF2 ВК4 - Верхний порог предупреждения"]
[{"$nulls":3},"0x13C4",5060,"Температура охладителя фазной ячейки AF2 ВК5 - Верхний порог предупреждения"]
[{"$nulls":3},"0x13C5",5061,"Температура охладителя фазной ячейки AF2 ВК6 - Верхний порог предупреждения"]
[{"$nulls":3},"0x13C6",5062,"Температура охладителя фазной ячейки AF2 ВК7 - Верхний порог предупреждения"]
[{"$nulls":3},"0x13C7",5063,"Температура охладителя фазной ячейки AF2 ВК8 - Верхний порог предупреждения"]
[{"$nulls":3},"0x13C8",5064,"Температура охладителя фазной ячейки AF3 ВК1 - Верхний порог предупреждения"]
[{"$nulls":3},"0x13C9",5065,"Температура охладителя фазной ячейки AF3 ВК2 - Верхний порог предупреждения"]
[{"$nulls":3},"0x13CA",5066,"Температура охладителя фазной ячейки AF3 ВК3 - Верхний порог предупреждения"]
[{"$nulls":3},"0x13CB",5067,"Температура охладителя фазной ячейки AF3 ВК4 - Верхний порог предупреждения"]
[{"$nulls":3},"0x13CC",5068,"Температура охладителя фазной ячейки AF3 ВК5 - Верхний порог предупреждения"]
[{"$nulls":3},"0x13CD",5069,"Температура охладителя фазной ячейки AF3 ВК6 - Верхний порог предупреждения"]
[{"$nulls":3},"0x13CE",5070,"Температура охладителя фазной ячейки AF3 ВК7 - Верхний порог предупреждения"]
[{"$nulls":3},"0x13CF",5071,"Температура охладителя фазной ячейки AF3 ВК8 - Верхний порог предупреждения"]
[{"$nulls":3},"0x13D0",5072,"Температура охладителя чопперной ячейки UF1 ВК1 - Верхний порог предупреждения"]
[{"$nulls":3},"0x13D1",5073,"Температура охладителя чопперной ячейки UF1 ВК2 - Верхний порог предупреждения"]
[{"$nulls":3},"0x13D2",5074,"Температура охладителя чопперной ячейки UF1 ВК3 - Верхний порог предупреждения"]
[{"$nulls":3},"0x13D3",5075,"Температура охладителя чопперной ячейки UF1 ВК4 - Верхний порог предупреждения"]
[{"$nulls":3},"0x13D4",5076,"Температура объёма БИ ВК4 - Верхний порог предупреждения"]
[{"$nulls":3},"0x13D5",5077,"Температура объёма БИ ВК8 - Верхний порог предупреждения"]
[{"$nulls":3},"0x13D6",5078,"Температура воды чопперной ячейки UF1 ВК28 - Верхний порог предупреждения"]
[{"$nulls":3},"0x13D7",5079,"Температура воды фазной ячейки AF1 ВК13 - Верхний порог предупреждения"]
[{"$nulls":3},"0x13D8",5080,"Температура воды фазной ячейки AF2 ВК20 - Верхний порог предупреждения"]
[{"$nulls":3},"0x13D9",5081,"Температура воды фазной ячейки AF3 ВК24 - Верхний порог предупреждения"]
[null,null,"БВШ","0x13DA",5082,"Температура объёма БВШ ВК4 - Верхний порог предупреждения"]
[{"$nulls":3},"0x13DB",5083,"Температура объёма БВШ ВК8 - Верхний порог предупреждения"]
[null,null,"Система охлаждения","0x13DC",5084,"Давление на входе внутреннего контура PT1 (МПа) - Верхний порог предупреждения"]
[{"$nulls":3},"0x13DD",5085,"Давление на выходе внутреннего контура PT2 (МПа)-Верхний порог предупреждения"]
[{"$nulls":3},"0x13DE",5086,"Показания расходомера (м3/ч) - Верхний порог предупреждения"]
[{"$nulls":3},"0x13DF",5087,"Температуры воды \"Вход\" BK9  - Верхний порог предупреждения"]
[{"$nulls":3},"0x13E0",5088,"Температуры воды \"Выход\" BK10 - Верхний порог предупреждения"]
[null,"Приём значений уставок (Верхний порог аварии)","Осн. данные","0x13E1",5089,"Порог аварийно высокого тока на выходе фазы U"]
[{"$nulls":3},"0x13E2",5090,"Порог аварийно высокого тока на выходе фазы V"]
[{"$nulls":3},"0x13E3",5091,"Порог аварийно высокого тока на выходе фазы W"]
[null,null,"Блок БСУ","0x13E4",5092,"УКСИ - Аварийная уставка"]
[{"$nulls":3},"0x13E5",5093,"Температура объёма БСУ ВК1  - Верхний порог аварии"]
[{"$nulls":3},"0x13E6",5094,"Температура объёма БСУ ВК5  - Верхний порог аварии"]
[null,null,"Блок БВ","0x13E7",5095,"Порог аварийно высокого напряжения на входе А1В1"]
[{"$nulls":3},"0x13E8",5096,"Порог аварийно высокого напряжения на входе В1С1"]
[{"$nulls":3},"0x13E9",5097,"Порог аварийно высокого напряжения на входе А2В2"]
[{"$nulls":3},"0x13EA",5098,"Порог аварийно высокого напряжения на входе В2С2"]
[{"$nulls":3},"0x13EB",5099,"Частота входного напряжения выпрямителя UZ1 (Гц) - Верхний порог аварии"]
[{"$nulls":3},"0x13EC",5100,"Частота входного напряжения выпрямителя UZ2 (Гц) - Верхний порог аварии"]
[{"$nulls":3},"0x13ED",5101,"Температура охладителя выпрямительной ячейки UZ1 ВК1 - Верхний порог аварии"]
[{"$nulls":3},"0x13EE",5102,"Температура охладителя выпрямительной ячейки UZ1 ВК2 - Верхний порог аварии"]
[{"$nulls":3},"0x13EF",5103,"Температура охладителя выпрямительной ячейки UZ2 ВК1 - Верхний порог аварии"]
[{"$nulls":3},"0x13F0",5104,"Температура охладителя выпрямительной ячейки UZ2 ВК2 - Верхний порог аварии"]
[{"$nulls":3},"0x13F1",5105,"Температура охладителя резисторного модуля UR1 ВК1 - Верхний порог аварии"]
[{"$nulls":3},"0x13F2",5106,"Температура охладителя резисторного модуля UR1 ВК2 - Верхний порог аварии"]
[{"$nulls":3},"0x13F3",5107,"Температура охладителя резисторного модуля UR2 ВК1 - Верхний порог аварии"]
[{"$nulls":3},"0x13F4",5108,"Температура охладителя резисторного модуля UR2 ВК2 - Верхний порог аварии"]
[{"$nulls":3},"0x13F5",5109,"Температура охладителя резисторного модуля UR3 ВК1 - Верхний порог аварии"]
[{"$nulls":3},"0x13F6",5110,"Температура охладителя резисторного модуля UR3 ВК2 - Верхний порог аварии"]
[{"$nulls":3},"0x13F7",5111,"Температура объёма Блок БВ ВК2 - Верхний порог аварии"]
[{"$nulls":3},"0x13F8",5112,"Температура объёма Блок БВ ВК6 - Верхний порог аварии"]
[{"$nulls":3},"0x13F9",5113,"Температура воды выпрямительной ячейки UZ1 BK11 - Верхний порог аварии"]
[{"$nulls":3},"0x13FA",5114,"Температура воды выпрямительной ячейки UZ2 BK12 - Верхний порог аварии"]
[{"$nulls":3},"0x13FB",5115,"Температура воды резисторного модуля UR1 BK17 - Верхний порог аварии"]
[{"$nulls":3},"0x13FC",5116,"Температура воды резисторного модуля UR2 BK18 - Верхний порог аварии"]
[{"$nulls":3},"0x13FD",5117,"Температура воды резисторного модуля UR3 BK19 - Верхний порог аварии"]
[null,null,"БК","0x13FE",5118,"Напряжение звена постоянного тока (В) - Верхний порог аварии"]
[{"$nulls":3},"0x13FF",5119,"Ток звена постоянного тока (+) (А) - Верхний порог аварии"]
[{"$nulls":3},"0x1400",5120,"Ток звена постоянного тока (-) (А) - Верхний порог аварии"]
[{"$nulls":3},"0x1401",5121,"Температура объёма БК ВК3 - Верхний порог аварии"]
[{"$nulls":3},"0x1402",5122,"Температура объёма БК ВК7 - Верхний порог аварии"]
[null,null,"БИ","0x1403",5123,"Ток ячейки чопперной UF1 (А) - Верхний порог аварии"]
[{"$nulls":3},"0x1404",5124,"Ток ячейки фазной AF1 (А) - Верхний порог аварии"]
[{"$nulls":3},"0x1405",5125,"Ток ячейки фазной AF2 (А) - Верхний порог аварии"]
[{"$nulls":3},"0x1406",5126,"Ток ячейки фазной AF3 (А) - Верхний порог аварии"]
[{"$nulls":3},"0x1407",5127,"Температура охладителя фазной ячейки AF1 ВК1 - Верхний порог аварии"]
[{"$nulls":3},"0x1408",5128,"Температура охладителя фазной ячейки AF1 ВК2 - Верхний порог аварии"]
[{"$nulls":3},"0x1409",5129,"Температура охладителя фазной ячейки AF1 ВК3 - Верхний порог аварии"]
[{"$nulls":3},"0x140A",5130,"Температура охладителя фазной ячейки AF1 ВК4 - Верхний порог аварии"]
[{"$nulls":3},"0x140B",5131,"Температура охладителя фазной ячейки AF1 ВК5 - Верхний порог аварии"]
[{"$nulls":3},"0x140C",5132,"Температура охладителя фазной ячейки AF1 ВК6 - Верхний порог аварии"]
[{"$nulls":3},"0x140D",5133,"Температура охладителя фазной ячейки AF1 ВК7 - Верхний порог аварии"]
[{"$nulls":3},"0x140E",5134,"Температура охладителя фазной ячейки AF1 ВК8 - Верхний порог аварии"]
[{"$nulls":3},"0x140F",5135,"Температура охладителя фазной ячейки AF2 ВК1 - Верхний порог аварии"]
[{"$nulls":3},"0x1410",5136,"Температура охладителя фазной ячейки AF2 ВК2 - Верхний порог аварии"]
[{"$nulls":3},"0x1411",5137,"Температура охладителя фазной ячейки AF2 ВК3 - Верхний порог аварии"]
[{"$nulls":3},"0x1412",5138,"Температура охладителя фазной ячейки AF2 ВК4 - Верхний порог аварии"]
[{"$nulls":3},"0x1413",5139,"Температура охладителя фазной ячейки AF2 ВК5 - Верхний порог аварии"]
[{"$nulls":3},"0x1414",5140,"Температура охладителя фазной ячейки AF2 ВК6 - Верхний порог аварии"]
[{"$nulls":3},"0x1415",5141,"Температура охладителя фазной ячейки AF2 ВК7 - Верхний порог аварии"]
[{"$nulls":3},"0x1416",5142,"Температура охладителя фазной ячейки AF2 ВК8 - Верхний порог аварии"]
[{"$nulls":3},"0x1417",5143,"Температура охладителя фазной ячейки AF3 ВК1 - Верхний порог аварии"]
[{"$nulls":3},"0x1418",5144,"Температура охладителя фазной ячейки AF3 ВК2 - Верхний порог аварии"]
[{"$nulls":3},"0x1419",5145,"Температура охладителя фазной ячейки AF3 ВК3 - Верхний порог аварии"]
[{"$nulls":3},"0x141A",5146,"Температура охладителя фазной ячейки AF3 ВК4 - Верхний порог аварии"]
[{"$nulls":3},"0x141B",5147,"Температура охладителя фазной ячейки AF3 ВК5 - Верхний порог аварии"]
[{"$nulls":3},"0x141C",5148,"Температура охладителя фазной ячейки AF3 ВК6 - Верхний порог аварии"]
[{"$nulls":3},"0x141D",5149,"Температура охладителя фазной ячейки AF3 ВК7 - Верхний порог аварии"]
[{"$nulls":3},"0x141E",5150,"Температура охладителя фазной ячейки AF3 ВК8 - Верхний порог аварии"]
[{"$nulls":3},"0x141F",5151,"Температура охладителя чопперной ячейки UF1 ВК1 - Верхний порог аварии"]
[{"$nulls":3},"0x1420",5152,"Температура охладителя чопперной ячейки UF1 ВК2 - Верхний порог аварии"]
[{"$nulls":3},"0x1421",5153,"Температура охладителя чопперной ячейки UF1 ВК3 - Верхний порог аварии"]
[{"$nulls":3},"0x1422",5154,"Температура охладителя чопперной ячейки UF1 ВК4 - Верхний порог аварии"]
[{"$nulls":3},"0x1423",5155,"Температура объёма БИ ВК4 - Верхний порог аварии"]
[{"$nulls":3},"0x1424",5156,"Температура объёма БИ ВК8 - Верхний порог аварии"]
[{"$nulls":3},"0x1425",5157,"Температура воды чопперной ячейки UF1 ВК28 - Верхний порог аварии"]
[{"$nulls":3},"0x1426",5158,"Температура воды фазной ячейки AF1 ВК13 - Верхний порог аварии"]
[{"$nulls":3},"0x1427",5159,"Температура воды фазной ячейки AF2 ВК20 - Верхний порог аварии"]
[{"$nulls":3},"0x1428",5160,"Температура воды фазной ячейки AF3 ВК24 - Верхний порог аварии"]
[null,null,"БВШ","0x1429",5161,"Температура объёма БВШ ВК4 - Верхний порог аварии"]
[{"$nulls":3},"0x142A",5162,"Температура объёма БВШ ВК8 - Верхний порог аварии"]
[null,null,"Система охлаждения","0x142B",5163,"Давление на входе внутреннего контура PT1 (МПа) - Верхний порог аварии"]
[{"$nulls":3},"0x142C",5164,"Давление на выходе внутреннего контура PT2 (МПа) - Верхний порог аварии"]
[{"$nulls":3},"0x142D",5165,"Показания расходомера (м3/ч) - Верхний порог аварии"]
[{"$nulls":3},"0x142E",5166,"Температуры воды \"Вход\" BK9  - Верхний порог аварии"]
[{"$nulls":3},"0x142F",5167,"Температуры воды \"Выход\" BK10 - Верхний порог аварии"]
[null,"Приём значений уставок (Нижний порог предупреждения)","Блок БСУ","0x1430",5168,"Температура объёма БСУ ВК1  - Нижний порог предупреждения"]
[{"$nulls":3},"0x1431",5169,"Температура объёма БСУ ВК5  - Нижний порог предупреждения"]
[null,null,"Блок БВ","0x1432",5170,"Порог предупреждения о низком напряжении на входе А1В1"]
[{"$nulls":3},"0x1433",5171,"Порог предупреждения о низком напряжении на входе В1С1"]
[{"$nulls":3},"0x1434",5172,"Порог предупреждения о низком напряжении на входе А2В2"]
[{"$nulls":3},"0x1435",5173,"Порог предупреждения о низком напряжении на входе В2С2"]
[{"$nulls":3},"0x1436",5174,"Частота входного напряжения выпрямителя UZ1 (Гц) - Нижний порог предупреждения"]
[{"$nulls":3},"0x1437",5175,"Частота входного напряжения выпрямителя UZ2 (Гц) - Нижний порог предупреждения"]
[{"$nulls":3},"0x1438",5176,"Температура охладителя выпрямительной ячейки UZ1 ВК1 - Нижний порог предупреждения"]
[{"$nulls":3},"0x1439",5177,"Температура охладителя выпрямительной ячейки UZ1 ВК2 - Нижний порог предупреждения"]
[{"$nulls":3},"0x143A",5178,"Температура охладителя выпрямительной ячейки UZ2 ВК1 - Нижний порог предупреждения"]
[{"$nulls":3},"0x143B",5179,"Температура охладителя выпрямительной ячейки UZ2 ВК2 - Нижний порог предупреждения"]
[{"$nulls":3},"0x143C",5180,"Температура охладителя резисторного модуля UR1 ВК1 - Нижний порог предупреждения"]
[{"$nulls":3},"0x143D",5181,"Температура охладителя резисторного модуля UR1 ВК2 - Нижний порог предупреждения"]
[{"$nulls":3},"0x143E",5182,"Температура охладителя резисторного модуля UR2 ВК1 - Нижний порог предупреждения"]
[{"$nulls":3},"0x143F",5183,"Температура охладителя резисторного модуля UR2 ВК2 - Нижний порог предупреждения"]
[{"$nulls":3},"0x1440",5184,"Температура охладителя резисторного модуля UR3 ВК1 - Нижний порог предупреждения"]
[{"$nulls":3},"0x1441",5185,"Температура охладителя резисторного модуля UR3 ВК2 - Нижний порог предупреждения"]
[{"$nulls":3},"0x1442",5186,"Температура объёма Блок БВ ВК2 - Нижний порог предупреждения"]
[{"$nulls":3},"0x1443",5187,"Температура объёма Блок БВ ВК6 - Нижний порог предупреждения"]
[{"$nulls":3},"0x1444",5188,"Температура воды выпрямительной ячейки UZ1 ВК11 - Нижний порог предупреждения"]
[{"$nulls":3},"0x1445",5189,"Температура воды выпрямительной ячейки UZ2 ВК12 - Нижний порог предупреждения"]
[{"$nulls":3},"0x1446",5190,"Температура воды резисторного модуля UR1 ВК17 - Нижний порог предупреждения"]
[{"$nulls":3},"0x1447",5191,"Температура воды резисторного модуля UR2 ВК18 - Нижний порог предупреждения"]
[{"$nulls":3},"0x1448",5192,"Температура воды резисторного модуля UR3 ВК19 - Нижний порог предупреждения"]
[null,null,"БК","0x1449",5193,"Напряжение звена постоянного тока (В) - Нижний порог предупреждения"]
[{"$nulls":3},"0x144A",5194,"Температура объёма БК ВК3 - Нижний порог предупреждения"]
[{"$nulls":3},"0x144B",5195,"Температура объёма БК ВК7 - Нижний порог предупреждения"]
[null,null,"БИ","0x144C",5196,"Температура охладителя фазной ячейки AF1 ВК1 - Нижний порог предупреждения"]
[{"$nulls":3},"0x144D",5197,"Температура охладителя фазной ячейки AF1 ВК2 - Нижний порог предупреждения"]
[{"$nulls":3},"0x144E",5198,"Температура охладителя фазной ячейки AF1 ВК3 - Нижний порог предупреждения"]
[{"$nulls":3},"0x144F",5199,"Температура охладителя фазной ячейки AF1 ВК4 - Нижний порог предупреждения"]
[{"$nulls":3},"0x1450",5200,"Температура охладителя фазной ячейки AF1 ВК5 - Нижний порог предупреждения"]
[{"$nulls":3},"0x1451",5201,"Температура охладителя фазной ячейки AF1 ВК6 - Нижний порог предупреждения"]
[{"$nulls":3},"0x1452",5202,"Температура охладителя фазной ячейки AF1 ВК7 - Нижний порог предупреждения"]
[{"$nulls":3},"0x1453",5203,"Температура охладителя фазной ячейки AF1 ВК8 - Нижний порог предупреждения"]
[{"$nulls":3},"0x1454",5204,"Температура охладителя фазной ячейки AF2 ВК1 - Нижний порог предупреждения"]
[{"$nulls":3},"0x1455",5205,"Температура охладителя фазной ячейки AF2 ВК2 - Нижний порог предупреждения"]
[{"$nulls":3},"0x1456",5206,"Температура охладителя фазной ячейки AF2 ВК3 - Нижний порог предупреждения"]
[{"$nulls":3},"0x1457",5207,"Температура охладителя фазной ячейки AF2 ВК4 - Нижний порог предупреждения"]
[{"$nulls":3},"0x1458",5208,"Температура охладителя фазной ячейки AF2 ВК5 - Нижний порог предупреждения"]
[{"$nulls":3},"0x1459",5209,"Температура охладителя фазной ячейки AF2 ВК6 - Нижний порог предупреждения"]
[{"$nulls":3},"0x145A",5210,"Температура охладителя фазной ячейки AF2 ВК7 - Нижний порог предупреждения"]
[{"$nulls":3},"0x145B",5211,"Температура охладителя фазной ячейки AF2 ВК8 - Нижний порог предупреждения"]
[{"$nulls":3},"0x145C",5212,"Температура охладителя фазной ячейки AF3 ВК1 - Нижний порог предупреждения"]
[{"$nulls":3},"0x145D",5213,"Температура охладителя фазной ячейки AF3 ВК2 - Нижний порог предупреждения"]
[{"$nulls":3},"0x145E",5214,"Температура охладителя фазной ячейки AF3 ВК3 - Нижний порог предупреждения"]
[{"$nulls":3},"0x145F",5215,"Температура охладителя фазной ячейки AF3 ВК4 - Нижний порог предупреждения"]
[{"$nulls":3},"0x1460",5216,"Температура охладителя фазной ячейки AF3 ВК5 - Нижний порог предупреждения"]
[{"$nulls":3},"0x1461",5217,"Температура охладителя фазной ячейки AF3 ВК6 - Нижний порог предупреждения"]
[{"$nulls":3},"0x1462",5218,"Температура охладителя фазной ячейки AF3 ВК7 - Нижний порог предупреждения"]
[{"$nulls":3},"0x1463",5219,"Температура охладителя фазной ячейки AF3 ВК8 - Нижний порог предупреждения"]
[{"$nulls":3},"0x1464",5220,"Температура охладителя чопперной ячейки UF1 ВК1 - Нижний порог предупреждения"]
[{"$nulls":3},"0x1465",5221,"Температура охладителя чопперной ячейки UF1 ВК2 - Нижний порог предупреждения"]
[{"$nulls":3},"0x1466",5222,"Температура охладителя чопперной ячейки UF1 ВК3 - Нижний порог предупреждения"]
[{"$nulls":3},"0x1467",5223,"Температура охладителя чопперной ячейки UF1 ВК4 - Нижний порог предупреждения"]
[{"$nulls":3},"0x1468",5224,"Температура объёма БИ ВК4 - Нижний порог предупреждения"]
[{"$nulls":3},"0x1469",5225,"Температура объёма БИ ВК8 - Нижний порог предупреждения"]
[{"$nulls":3},"0x146A",5226,"Температура воды чопперной ячейки UF1 ВК28 - Нижний порог предупреждения"]
[{"$nulls":3},"0x146B",5227,"Температура воды фазной ячейки AF1 ВК13 - Нижний порог предупреждения"]
[{"$nulls":3},"0x146C",5228,"Температура воды фазной ячейки AF2 ВК20 - Нижний порог предупреждения"]
[{"$nulls":3},"0x146D",5229,"Температура воды фазной ячейки AF3 ВК24 - Нижний порог предупреждения"]
[null,null,"БВШ","0x146E",5230,"Температура объёма БВШ ВК4 - Нижний порог предупреждения"]
[{"$nulls":3},"0x146F",5231,"Температура объёма БВШ ВК8 - Нижний порог предупреждения"]
[null,null,"Система охлаждения","0x1470",5232,"Давление на входе внутреннего контура PT1 (МПа) - Нижний порог предупреждения"]
[{"$nulls":3},"0x1471",5233,"Давление на выходе внутреннего контура PT2 (МПа) - Нижний порог предупреждения"]
[{"$nulls":3},"0x1472",5234,"Показания расходомера (м3/ч) - Нижний порог предупреждения"]
[{"$nulls":3},"0x1473",5235,"Температуры воды \"Вход\" BK9  - Нижний порог предупреждения"]
[{"$nulls":3},"0x1474",5236,"Температуры воды \"Выход\" BK10 - Нижний порог предупреждения"]
[null,"Приём значений уставок (Нижний порог аварии)","Блок БСУ","0x1475",5237,"Температура объёма БСУ ВК1  - Нижний порог аварии"]
[{"$nulls":3},"0x1476",5238,"Температура объёма БСУ ВК5  - Нижний порог аварии"]
[null,null,"Блок БВ","0x1477",5239,"Порог аварийно низкого напряжения на входе А1В1"]
[{"$nulls":3},"0x1478",5240,"Порог аварийно низкого напряжения на входе В1С1"]
[{"$nulls":3},"0x1479",5241,"Порог аварийно низкого напряжения на входе А2В2"]
[{"$nulls":3},"0x147A",5242,"Порог аварийно низкого напряжения на входе В2С2"]
[{"$nulls":3},"0x147B",5243,"Частота входного напряжения выпрямителя UZ1 (Гц) - Нижний порог аварии"]
[{"$nulls":3},"0x147C",5244,"Частота входного напряжения выпрямителя UZ2 (Гц) - Нижний порог аварии"]
[{"$nulls":3},"0x147D",5245,"Температура охладителя выпрямительной ячейки UZ1 ВК1 - Нижний порог аварии"]
[{"$nulls":3},"0x147E",5246,"Температура охладителя выпрямительной ячейки UZ1 ВК2 - Нижний порог аварии"]
[{"$nulls":3},"0x147F",5247,"Температура охладителя выпрямительной ячейки UZ2 ВК1 - Нижний порог аварии"]
[{"$nulls":3},"0x1480",5248,"Температура охладителя выпрямительной ячейки UZ2 ВК2 - Нижний порог аварии"]
[{"$nulls":3},"0x1481",5249,"Температура охладителя резисторного модуля UR1 ВК1 - Нижний порог аварии"]
[{"$nulls":3},"0x1482",5250,"Температура охладителя резисторного модуля UR1 ВК2 - Нижний порог аварии"]
[{"$nulls":3},"0x1483",5251,"Температура охладителя резисторного модуля UR2 ВК1 - Нижний порог аварии"]
[{"$nulls":3},"0x1484",5252,"Температура охладителя резисторного модуля UR2 ВК2 - Нижний порог аварии"]
[{"$nulls":3},"0x1485",5253,"Температура охладителя резисторного модуля UR3 ВК1 - Нижний порог аварии"]
[{"$nulls":3},"0x1486",5254,"Температура охладителя резисторного модуля UR3 ВК2 - Нижний порог аварии"]
[{"$nulls":3},"0x1487",5255,"Температура объёма Блок БВ ВК2 - Нижний порог аварии"]
[{"$nulls":3},"0x1488",5256,"Температура объёма Блок БВ ВК6 - Нижний порог аварии"]
[{"$nulls":3},"0x1489",5257,"Температура воды выпрямительной ячейки UZ1 ВК11 - Нижний порог аварии"]
[{"$nulls":3},"0x148A",5258,"Температура воды выпрямительной ячейки UZ2 ВК12 - Нижний порог аварии"]
[{"$nulls":3},"0x148B",5259,"Температура воды резисторного модуля UR1 ВК17 - Нижний порог аварии"]
[{"$nulls":3},"0x148C",5260,"Температура воды резисторного модуля UR2 ВК18 - Нижний порог аварии"]
[{"$nulls":3},"0x148D",5261,"Температура воды резисторного модуля UR3 ВК19 - Нижний порог аварии"]
[null,null,"БК","0x148E",5262,"Напряжение звена постоянного тока (В) - Нижний порог аварии"]
[{"$nulls":3},"0x148F",5263,"Температура объёма БК ВК3 - Нижний порог аварии"]
[{"$nulls":3},"0x1490",5264,"Температура объёма БК ВК7 - Нижний порог аварии"]
[null,null,"БИ","0x1491",5265,"Температура охладителя фазной ячейки AF1 ВК1 - Нижний порог аварии"]
[{"$nulls":3},"0x1492",5266,"Температура охладителя фазной ячейки AF1 ВК2 - Нижний порог аварии"]
[{"$nulls":3},"0x1493",5267,"Температура охладителя фазной ячейки AF1 ВК3 - Нижний порог аварии"]
[{"$nulls":3},"0x1494",5268,"Температура охладителя фазной ячейки AF1 ВК4 - Нижний порог аварии"]
[{"$nulls":3},"0x1495",5269,"Температура охладителя фазной ячейки AF1 ВК5 - Нижний порог аварии"]
[{"$nulls":3},"0x1496",5270,"Температура охладителя фазной ячейки AF1 ВК6 - Нижний порог аварии"]
[{"$nulls":3},"0x1497",5271,"Температура охладителя фазной ячейки AF1 ВК7 - Нижний порог аварии"]
[{"$nulls":3},"0x1498",5272,"Температура охладителя фазной ячейки AF1 ВК8 - Нижний порог аварии"]
[{"$nulls":3},"0x1499",5273,"Температура охладителя фазной ячейки AF2 ВК1 - Нижний порог аварии"]
[{"$nulls":3},"0x149A",5274,"Температура охладителя фазной ячейки AF2 ВК2 - Нижний порог аварии"]
[{"$nulls":3},"0x149B",5275,"Температура охладителя фазной ячейки AF2 ВК3 - Нижний порог аварии"]
[{"$nulls":3},"0x149C",5276,"Температура охладителя фазной ячейки AF2 ВК4 - Нижний порог аварии"]
[{"$nulls":3},"0x149D",5277,"Температура охладителя фазной ячейки AF2 ВК5 - Нижний порог аварии"]
[{"$nulls":3},"0x149E",5278,"Температура охладителя фазной ячейки AF2 ВК6 - Нижний порог аварии"]
[{"$nulls":3},"0x149F",5279,"Температура охладителя фазной ячейки AF2 ВК7 - Нижний порог аварии"]
[{"$nulls":3},"0x14A0",5280,"Температура охладителя фазной ячейки AF2 ВК8 - Нижний порог аварии"]
[{"$nulls":3},"0x14A1",5281,"Температура охладителя фазной ячейки AF3 ВК1 - Нижний порог аварии"]
[{"$nulls":3},"0x14A2",5282,"Температура охладителя фазной ячейки AF3 ВК2 - Нижний порог аварии"]
[{"$nulls":3},"0x14A3",5283,"Температура охладителя фазной ячейки AF3 ВК3 - Нижний порог аварии"]
[{"$nulls":3},"0x14A4",5284,"Температура охладителя фазной ячейки AF3 ВК4 - Нижний порог аварии"]
[{"$nulls":3},"0x14A5",5285,"Температура охладителя фазной ячейки AF3 ВК5 - Нижний порог аварии"]
[{"$nulls":3},"0x14A6",5286,"Температура охладителя фазной ячейки AF3 ВК6 - Нижний порог аварии"]
[{"$nulls":3},"0x14A7",5287,"Температура охладителя фазной ячейки AF3 ВК7 - Нижний порог аварии"]
[{"$nulls":3},"0x14A8",5288,"Температура охладителя фазной ячейки AF3 ВК8 - Нижний порог аварии"]
[{"$nulls":3},"0x14A9",5289,"Температура охладителя чопперной ячейки UF1 ВК1 - Нижний порог аварии"]
[{"$nulls":3},"0x14AA",5290,"Температура охладителя чопперной ячейки UF1 ВК2 - Нижний порог аварии"]
[{"$nulls":3},"0x14AB",5291,"Температура охладителя чопперной ячейки UF1 ВК3 - Нижний порог аварии"]
[{"$nulls":3},"0x14AC",5292,"Температура охладителя чопперной ячейки UF1 ВК4 - Нижний порог аварии"]
[{"$nulls":3},"0x14AD",5293,"Температура объёма БИ ВК4 - Нижний порог аварии"]
[{"$nulls":3},"0x14AE",5294,"Температура объёма БИ ВК8 - Нижний порог аварии"]
[{"$nulls":3},"0x14AF",5295,"Температура воды чопперной ячейки UF1 ВК28 - Нижний порог аварии"]
[{"$nulls":3},"0x14B0",5296,"Температура воды фазной ячейки AF1 ВК13 - Нижний порог аварии"]
[{"$nulls":3},"0x14B1",5297,"Температура воды фазной ячейки AF2 ВК20 - Нижний порог аварии"]
[{"$nulls":3},"0x14B2",5298,"Температура воды фазной ячейки AF3 ВК24 - Нижний порог аварии"]
[null,null,"БВШ","0x14B3",5299,"Температура объёма БВШ ВК4 - Нижний порог аварии"]
[{"$nulls":3},"0x14B4",5300,"Температура объёма БВШ ВК8 - Нижний порог аварии"]
[null,null,"Система охлаждения","0x14B5",5301,"Давление на входе внутреннего контура PT1 (МПа) - Нижний порог аварии"]
[{"$nulls":3},"0x14B6",5302,"Давление на выходе внутреннего контура PT2 (МПа) - Нижний порог аварии"]
[{"$nulls":3},"0x14B7",5303,"Показания расходомера (м3/ч) - Нижний порог аварии"]
[{"$nulls":3},"0x14B8",5304,"Температуры воды \"Вход\" BK9  - Нижний порог аварии"]
[{"$nulls":3},"0x14B9",5305,"Температуры воды \"Выход\" BK10 - Нижний порог аварии"]
{"$rows_empty":8}
[{"$nulls":3},"0x1492",5266,"Порог аварийно низкого напряжения на входе В2С2"]
[{"$nulls":3},"0x1493",5267,"Частота входного напряжения выпрямителя UZ1 (Гц) - Нижний порог аварии"]
[{"$nulls":3},"0x1494",5268,"Частота входного напряжения выпрямителя UZ2 (Гц) - Нижний порог аварии"]
[{"$nulls":3},"0x1495",5269,"Температура охладителя выпрямительной ячейки UZ1 ВК1 - Нижний порог аварии"]
[{"$nulls":3},"0x1496",5270,"Температура охладителя выпрямительной ячейки UZ1 ВК2 - Нижний порог аварии"]
[{"$nulls":3},"0x1497",5271,"Температура охладителя выпрямительной ячейки UZ2 ВК1 - Нижний порог аварии"]
[{"$nulls":3},"0x1498",5272,"Температура охладителя выпрямительной ячейки UZ2 ВК2 - Нижний порог аварии"]
[{"$nulls":3},"0x1499",5273,"Температура охладителя резисторного модуля UR1 ВК1 - Нижний порог аварии"]
[{"$nulls":3},"0x149A",5274,"Температура охладителя резисторного модуля UR1 ВК2 - Нижний порог аварии"]
[{"$nulls":3},"0x149B",5275,"Температура охладителя резисторного модуля UR2 ВК1 - Нижний порог аварии"]
[{"$nulls":3},"0x149C",5276,"Температура охладителя резисторного модуля UR2 ВК2 - Нижний порог аварии"]
[{"$nulls":3},"0x149D",5277,"Температура охладителя резисторного модуля UR3 ВК1 - Нижний порог аварии"]
[{"$nulls":3},"0x149E",5278,"Температура охладителя резисторного модуля UR3 ВК2 - Нижний порог аварии"]
[{"$nulls":3},"0x149F",5279,"Температура объёма Блок вводной ВК2 - Нижний порог аварии"]
[{"$nulls":3},"0x14A0",5280,"Температура объёма Блок вводной ВК6 - Нижний порог аварии"]
[{"$nulls":3},"0x14A1",5281,"Температура воды выпрямительной ячейки UZ1 ВК11 - Нижний порог аварии"]
[{"$nulls":3},"0x14A2",5282,"Температура воды выпрямительной ячейки UZ2 ВК12 - Нижний порог аварии"]
[{"$nulls":3},"0x14A3",5283,"Температура воды резисторного модуля UR1 ВК17 - Нижний порог аварии"]
[{"$nulls":3},"0x14A4",5284,"Температура воды резисторного модуля UR2 ВК18 - Нижний порог аварии"]
[{"$nulls":3},"0x14A5",5285,"Температура воды резисторного модуля UR3 ВК19 - Нижний порог аварии"]
[null,null,"БС1","0x14A6",5286,"Напряжение звена постоянного тока (В) - Нижний порог аварии"]
[{"$nulls":3},"0x14A7",5287,"Температура объёма БС1 ВК3 - Нижний порог аварии"]
[{"$nulls":3},"0x14A8",5288,"Температура объёма БС1 ВК7 - Нижний порог аварии"]
[null,null,"БС2","0x14A9",5289,"Температура охладителя фазной ячейки AF1 ВК1 - Нижний порог аварии"]
[{"$nulls":3},"0x14AA",5290,"Температура охладителя фазной ячейки AF1 ВК2 - Нижний порог аварии"]
[{"$nulls":3},"0x14AB",5291,"Температура охладителя фазной ячейки AF1 ВК3 - Нижний порог аварии"]
[{"$nulls":3},"0x14AC",5292,"Температура охладителя фазной ячейки AF1 ВК4 - Нижний порог аварии"]
[{"$nulls":3},"0x14AD",5293,"Температура охладителя фазной ячейки AF1 ВК5 - Нижний порог аварии"]
[{"$nulls":3},"0x14AE",5294,"Температура охладителя фазной ячейки AF1 ВК6 - Нижний порог аварии"]
[{"$nulls":3},"0x14AF",5295,"Температура охладителя фазной ячейки AF1 ВК7 - Нижний порог аварии"]
[{"$nulls":3},"0x14B0",5296,"Температура охладителя фазной ячейки AF1 ВК8 - Нижний порог аварии"]
[{"$nulls":3},"0x14B1",5297,"Температура охладителя фазной ячейки AF2 ВК1 - Нижний порог аварии"]
[{"$nulls":3},"0x14B2",5298,"Температура охладителя фазной ячейки AF2 ВК2 - Нижний порог аварии"]
[{"$nulls":3},"0x14B3",5299,"Температура охладителя фазной ячейки AF2 ВК3 - Нижний порог аварии"]
[{"$nulls":3},"0x14B4",5300,"Температура охладителя фазной ячейки AF2 ВК4 - Нижний порог аварии"]
[{"$nulls":3},"0x14B5",5301,"Температура охладителя фазной ячейки AF2 ВК5 - Нижний порог аварии"]
[{"$nulls":3},"0x14B6",5302,"Температура охладителя фазной ячейки AF2 ВК6 - Нижний порог аварии"]
[{"$nulls":3},"0x14B7",5303,"Температура охладителя фазной ячейки AF2 ВК7 - Нижний порог аварии"]
[{"$nulls":3},"0x14B8",5304,"Температура охладителя фазной ячейки AF2 ВК8 - Нижний порог аварии"]
[{"$nulls":3},"0x14B9",5305,"Температура охладителя фазной ячейки AF3 ВК1 - Нижний порог аварии"]
[{"$nulls":3},"0x14BA",5306,"Температура охладителя фазной ячейки AF3 ВК2 - Нижний порог аварии"]
[{"$nulls":3},"0x14BB",5307,"Температура охладителя фазной ячейки AF3 ВК3 - Нижний порог аварии"]
[{"$nulls":3},"0x14BC",5308,"Температура охладителя фазной ячейки AF3 ВК4 - Нижний порог аварии"]
[{"$nulls":3},"0x14BD",5309,"Температура охладителя фазной ячейки AF3 ВК5 - Нижний порог аварии"]
[{"$nulls":3},"0x14BE",5310,"Температура охладителя фазной ячейки AF3 ВК6 - Нижний порог аварии"]
[{"$nulls":3},"0x14BF",5311,"Температура охладителя фазной ячейки AF3 ВК7 - Нижний порог аварии"]
[{"$nulls":3},"0x14C0",5312,"Температура охладителя фазной ячейки AF3 ВК8 - Нижний порог аварии"]
[{"$nulls":3},"0x14C1",5313,"Температура охладителя чопперной ячейки UF1 ВК1 - Нижний порог аварии"]
[{"$nulls":3},"0x14C2",5314,"Температура охладителя чопперной ячейки UF1 ВК2 - Нижний порог аварии"]
[{"$nulls":3},"0x14C3",5315,"Температура охладителя чопперной ячейки UF1 ВК3 - Нижний порог аварии"]
[{"$nulls":3},"0x14C4",5316,"Температура охладителя чопперной ячейки UF1 ВК4 - Нижний порог аварии"]
[{"$nulls":3},"0x14C5",5317,"Температура объёма БС2 ВК4 - Нижний порог аварии"]
[{"$nulls":3},"0x14C6",5318,"Температура объёма БС2 ВК8 - Нижний порог аварии"]
[{"$nulls":3},"0x14C7",5319,"Температура воды чопперной ячейки UF1 ВК28 - Нижний порог аварии"]
[{"$nulls":3},"0x14C8",5320,"Температура воды чопперной ячейки UF1 ВК29 - Нижний порог аварии"]
[{"$nulls":3},"0x14C9",5321,"Температура воды фазной ячейки AF1 ВК13 - Нижний порог аварии"]
[{"$nulls":3},"0x14CA",5322,"Температура воды фазной ячейки AF1 ВК14 - Нижний порог аварии"]
[{"$nulls":3},"0x14CB",5323,"Температура воды фазной ячейки AF1 ВК15 - Нижний порог аварии"]
[{"$nulls":3},"0x14CC",5324,"Температура воды фазной ячейки AF1 ВК16 - Нижний порог аварии"]
[{"$nulls":3},"0x14CD",5325,"Температура воды фазной ячейки AF2 ВК20 - Нижний порог аварии"]
[{"$nulls":3},"0x14CE",5326,"Температура воды фазной ячейки AF2 ВК21 - Нижний порог аварии"]
[{"$nulls":3},"0x14CF",5327,"Температура воды фазной ячейки AF2 ВК22 - Нижний порог аварии"]
[{"$nulls":3},"0x14D0",5328,"Температура воды фазной ячейки AF2 ВК23 - Нижний порог аварии"]
[{"$nulls":3},"0x14D1",5329,"Температура воды фазной ячейки AF3 ВК24 - Нижний порог аварии"]
[{"$nulls":3},"0x14D2",5330,"Температура воды фазной ячейки AF3 ВК25 - Нижний порог аварии"]
[{"$nulls":3},"0x14D3",5331,"Температура воды фазной ячейки AF3 ВК26 - Нижний порог аварии"]
[{"$nulls":3},"0x14D4",5332,"Температура воды фазной ячейки AF3 ВК27 - Нижний порог аварии"]
[null,null,"Система охлаждения","0x14D5",5333,"Давление на входе внутреннего контура PT1 (МПа) - Нижний порог аварии"]
[{"$nulls":3},"0x14D6",5334,"Давление на выходе внутреннего контура PT2 (МПа) - Нижний порог аварии"]
[{"$nulls":3},"0x14D7",5335,"Показания расходомера (м3/ч) - Нижний порог аварии"]
[{"$nulls":3},"0x14D8",5336,"Температуры воды \"Вход\" BK9  - Нижний порог аварии"]
[{"$nulls":3},"0x14D9",5337,"Температуры воды \"Выход\" BK10 - Нижний порог аварии"]